Workbook

Sheet Lookup (hidden)
A1: FACTOR NO. 1 - HIP ELIGIBILITY/SELECTION CRITERIA @ 150%
A2: INCOME GUIDELINE POINT SCHEDULE FOR ALL STATES EXCEPT ALASKA
C3: 25 | F3: 20 | I3: 15 | L3: 10 | O3: 5 | R3: 0 | U3: Ineligible | AJ3: Income | AK3: Family Size | AL3: Answer
A4: 1 | B4: 0 | C4: TO | D4: =D17 -> 3,015 | E4: =D4+1 -> 3,016 | F4: TO | G4: =G17 -> 6,030 | H4: =G4+1 -> 6,031 | I4: TO | J4: =J17 -> 9,045 | K4: =J4+1 -> 9,046 | L4: TO | M4: =M17 -> 12,060 | N4: =M4+1 -> 12,061 | O4: TO | P4: =P17 -> 15,075 | Q4: =P4+1 -> 15,076 | R4: TO | S4: =S17 -> 18,090 | T4: =S4+1 -> 18,091 | U4: & HIGHER | X4: 1 | Y4: =B4 -> 0 | Z4: =E4 -> 3016 | AA4: =H4 -> 6031 | AB4: =K4 -> 9046 | AC4: =N4 -> 12061 | AD4: =Q4 -> 15076 | AE4: =T4 -> 18091 | AF4: =HLOOKUP($AJ5,Y4:AE5,2) -> 25 | AG4: hlookup if in this row
A5: 2 | B5: 0 | C5: TO | D5: =(D4+D$16) -> 4,060 | E5: 4,061 | F5: TO | G5: =G4+G$16 -> 8,120 | H5: 8,121 | I5: TO | J5: =J4+J$16 -> 12,180 | K5: 12,181 | L5: TO | M5: =M4+M$16 -> 16,240 | N5: 16,241 | O5: TO | P5: =P4+P$16 -> 20,300 | Q5: 20,301 | R5: TO | S5: =S4+S$16 -> 24,360 | T5: 24,361 | U5: & HIGHER | W5: 1 | Y5: 25 | Z5: 20 | AA5: 15 | AB5: 10 | AC5: 5 | AD5: 0 | AE5: N/A | AF5: N/A | AJ5: =Form!G12 -> 0 | AK5: =Form!E12 -> 0 | AL5: =VLOOKUP(AK5,Income_2,9) -> 
A6: 3 | B6: 0 | C6: TO | D6: =D5+D$16 -> 5,105 | E6: 5,106 | F6: TO | G6: 10,210 | H6: 10,211 | I6: TO | J6: 15,315 | K6: 15,316 | L6: TO | M6: 20,420 | N6: 20,421 | O6: TO | P6: 25,525 | Q6: 25,526 | R6: TO | S6: 30,630 | T6: 30,631 | U6: & HIGHER | X6: 2 | Y6: =B5 -> 0 | Z6: =E5 -> 4061 | AA6: =H5 -> 8121 | AB6: =K5 -> 12181 | AC6: =N5 -> 16241 | AE6: =T5 -> 24,361 | AF6: =HLOOKUP($AJ5,Y6:AE7,2) -> 25 | AG6: hlookup if in this row
A7: 4 | B7: 0 | C7: TO | D7: 6,150 | E7: 6,151 | F7: TO | G7: 12,300 | H7: 12,301 | I7: TO | J7: 18,450 | K7: 18,451 | L7: TO | M7: 24,600 | N7: 24,601 | O7: TO | P7: 30,750 | Q7: 30,751 | R7: TO | S7: 36,900 | T7: 36,901 | U7: & HIGHER | Y7: 25 | Z7: 20 | AA7: 15 | AB7: 10 | AC7: 5 | AD7: 0 | AE7: N/A
A8: 5 | B8: 0 | C8: TO | D8: 7,195 | E8: 7,196 | F8: TO | G8: 14,390 | H8: 14,391 | I8: TO | J8: 21,585 | K8: 21,586 | L8: TO | M8: 28,780 | N8: 28,781 | O8: TO | P8: 35,975 | Q8: 35,976 | R8: TO | S8: 43,170 | T8: 43,171 | U8: & HIGHER | X8: 3 | Y8: =B6 -> 0 | Z8: =E6 -> 5106 | AA8: =H6 -> 10211 | AB8: =K6 -> 15316 | AC8: =N6 -> 20421 | AE8: =T6 -> 30,631 | AF8: =HLOOKUP($AJ5,Y8:AE9,2) -> 25 | AG8: hlookup if in this row
A9: 6 | B9: 0 | C9: TO | D9: 8,240 | E9: 8,241 | F9: TO | G9: 16,480 | H9: 16,481 | I9: TO | J9: 24,720 | K9: 24,721 | L9: TO | M9: 32,960 | N9: 32,961 | O9: TO | P9: 41,200 | Q9: 41,201 | R9: TO | S9: 49,440 | T9: 49,441 | U9: & HIGHER | Y9: 25 | Z9: 20 | AA9: 15 | AB9: 10 | AC9: 5 | AD9: 0 | AE9: N/A
A10: 7 | B10: 0 | C10: TO | D10: 9,285 | E10: 9,286 | F10: TO | G10: 18,570 | H10: 18,571 | I10: TO | J10: 27,855 | K10: 27,856 | L10: TO | M10: 37,140 | N10: 37,141 | O10: TO | P10: 46,425 | Q10: 46,426 | R10: TO | S10: 55,710 | T10: 55,711 | U10: & HIGHER | X10: 4 | Y10: =B7 -> 0 | Z10: =E7 -> 6151 | AA10: =H7 -> 12301 | AB10: =K7 -> 18451 | AC10: =N7 -> 24601 | AE10: =T7 -> 36,901 | AF10: =HLOOKUP($AJ5,Y10:AE11,2) -> 25 | AG10: hlookup if in this row
A11: 8 | B11: 0 | C11: TO | D11: 10,330 | E11: 10,331 | F11: TO | G11: 20,660 | H11: 20,661 | I11: TO | J11: 30,990 | K11: 30,991 | L11: TO | M11: 41,320 | N11: 41,321 | O11: TO | P11: 51,650 | Q11: 51,651 | R11: TO | S11: 61,980 | T11: 61,981 | U11: & HIGHER | Y11: 25 | Z11: 20 | AA11: 15 | AB11: 10 | AC11: 5 | AD11: 0 | AE11: N/A
A12: 9 | B12: 0 | C12: TO | D12: 11,375 | E12: 11,376 | F12: TO | G12: 22,750 | H12: 22,751 | I12: TO | J12: 34,125 | K12: 34,126 | L12: TO | M12: 45,500 | N12: 45,501 | O12: TO | P12: 56,875 | Q12: 56,876 | R12: TO | S12: 68,250 | T12: 68,251 | U12: & HIGHER | X12: 5 | Y12: =B8 -> 0 | Z12: =E8 -> 7196 | AA12: =H8 -> 14391 | AB12: =K8 -> 21586 | AC12: =N8 -> 28781 | AE12: =T8 -> 43,171 | AF12: =HLOOKUP($AJ5,Y12:AE13,2) -> 25 | AG12: hlookup if in this row
A13: 10 | B13: 0 | C13: TO | D13: 12,420 | E13: 12,421 | F13: TO | G13: 24,840 | H13: 24,841 | I13: TO | J13: 37,260 | K13: 37,261 | L13: TO | M13: 49,680 | N13: 49,681 | O13: TO | P13: 62,100 | Q13: 62,101 | R13: TO | S13: 74,520 | T13: 74,521 | U13: & HIGHER | Y13: 25 | Z13: 20 | AA13: 15 | AB13: 10 | AC13: 5 | AD13: 0 | AE13: N/A
A14: 11 | B14: 0 | C14: TO | D14: 13,465 | E14: 13,466 | F14: TO | G14: 26,930 | H14: 26,931 | I14: TO | J14: 40,395 | K14: 40,396 | L14: TO | M14: 53,860 | N14: 53,861 | O14: TO | P14: 67,325 | Q14: 67,326 | R14: TO | S14: 80,790 | T14: 80,791 | U14: & HIGHER | X14: 6 | Y14: =B9 -> 0 | Z14: =E9 -> 8241 | AA14: =H9 -> 16481 | AB14: =K9 -> 24721 | AC14: =N9 -> 32961 | AE14: =T9 -> 49,441 | AF14: =HLOOKUP($AJ5,Y14:AE15,2) -> 25 | AG14: hlookup if in this row
A15: 12 | B15: 0 | C15: TO | D15: 14,510 | E15: 14,511 | F15: TO | G15: 29,020 | H15: 29,021 | I15: TO | J15: 43,530 | K15: 43,531 | L15: TO | M15: 58,040 | N15: 58,041 | O15: TO | P15: 72,550 | Q15: 72,551 | R15: TO | S15: 87,060 | T15: 87,061 | U15: & HIGHER | Y15: 25 | Z15: 20 | AA15: 15 | AB15: 10 | AC15: 5 | AD15: 0 | AE15: N/A
A16: EACH PERSON OVER 12 ADD | D16: =D18 -> 1,045 | G16: =G18 -> 2,090 | J16: =J18 -> 3,135 | M16: =M18 -> 4,180 | P16: =P18 -> 5,225 | S16: =S18 -> 6,270 | T16: 6,271 | U16: & HIGHER | X16: 7 | Y16: =B10 -> 0 | Z16: =E10 -> 9286 | AA16: =H10 -> 18571 | AB16: =K10 -> 27856 | AC16: =N10 -> 37141 | AE16: =T10 -> 55,711 | AF16: =HLOOKUP($AJ5,Y16:AE17,2) -> 25 | AG16: hlookup if in this row
B17: @ 25% = | D17: =$M$17*0.25 -> 3,015 | E17: @ 50% = | G17: =$M$17*0.5 -> 6,030 | H17: @ 75% = | J17: =$M$17*0.75 -> 9,045 | K17: @ 100% = | M17: 12,060 | N17: @ 125% = | P17: =$M$17*1.25 -> 15,075 | Q17: @150% | R17: = | S17: =M17*1.5 -> 18,090 | Y17: 25 | Z17: 20 | AA17: 15 | AB17: 10 | AC17: 5 | AD17: 0 | AE17: N/A
B18: @ Add'l: | D18: =M18*0.25 -> 1,045 | E18: @ Add'l: | G18: =M18*0.5 -> 2,090 | H18: @ Add'l: | J18: =M18*0.75 -> 3,135 | K18: @ Add'l: | M18: 4,180 | N18: @ Add'l: | P18: =M18*1.25 -> 5,225 | S18: =M18*1.5 -> 6,270 | X18: 8 | Y18: =-B11 -> 0 | Z18: =E11 -> 10331 | AA18: =H11 -> 20661 | AB18: =K11 -> 30991 | AC18: =N11 -> 41321 | AE18: =T11 -> 61,981 | AF18: =HLOOKUP($AJ5,Y18:AE19,2) -> 25 | AG18: hlookup if in this row
A19: FPIG = | B19: Federal Poverty Income Guidelines (Health & Human Services Poverty Guidelines) | M19: PG = | N19: Poverty Guidelines | Y19: 25 | Z19: 20 | AA19: 15 | AB19: 10 | AC19: 5 | AD19: 0 | AE19: N/A
X20: 9 | Y20: =B12 -> 0 | Z20: =E12 -> 11376 | AA20: =H12 -> 22751 | AB20: =K12 -> 34126 | AC20: =N12 -> 45501 | AE20: =T12 -> 68,251 | AF20: =HLOOKUP($AJ5,Y20:AE21,2) -> 25 | AG20: hlookup if in this row
Y21: 25 | Z21: 20 | AA21: 15 | AB21: 10 | AC21: 5 | AD21: 0 | AE21: N/A
X22: 10 | Y22: =B13 -> 0 | Z22: =E13 -> 12421 | AA22: =H13 -> 24841 | AB22: =K13 -> 37261 | AC22: =N13 -> 49681 | AE22: =T13 -> 74,521 | AF22: =HLOOKUP($AJ5,Y22:AE23,2) -> 25 | AG22: hlookup if in this row
Y23: 25 | Z23: 20 | AA23: 15 | AB23: 10 | AC23: 5 | AD23: 0 | AE23: N/A
X24: 11 | Y24: =B14 -> 0 | Z24: =E14 -> 13466 | AA24: =H14 -> 26931 | AB24: =K14 -> 40396 | AC24: =N14 -> 53861 | AE24: =T14 -> 80,791 | AF24: =HLOOKUP($AJ5,Y24:AE25,2) -> 25 | AG24: hlookup if in this row
Y25: 25 | Z25: 20 | AA25: 15 | AB25: 10 | AC25: 5 | AD25: 0 | AE25: N/A
X26: 12 | Y26: =B15 -> 0 | Z26: =E15 -> 14511 | AA26: =H15 -> 29021 | AB26: =K15 -> 43531 | AC26: =N15 -> 58041 | AE26: =T15 -> 87,061 | AF26: =HLOOKUP($AJ5,Y26:AE27,2) -> 25 | AG26: hlookup if in this row
Y27: 25 | Z27: 20 | AA27: 15 | AB27: 10 | AC27: 5 | AD27: 0 | AE27: N/A

Sheet Lookup Alaska (hidden)
A1: FACTOR NO. 1 - HIP ELIGIBILITY/SELECTION CRITERIA @ 150%
A2: INCOME GUIDELINE POINT SCHEDULE FOR ALASKA
C3: 25 | F3: 20 | I3: 15 | L3: 10 | O3: 5 | R3: 0 | U3: Ineligible | AJ3: Income | AK3: Family Size | AL3: Answer
A4: 1 | B4: 0 | C4: TO | D4: =D17 -> 3,765 | E4: =D4+1 -> 3,766 | F4: TO | G4: =G17 -> 7,530 | H4: =G4+1 -> 7,531 | I4: TO | J4: =J17 -> 11,295 | K4: =J4+1 -> 11,296 | L4: TO | M4: =M17 -> 15,060 | N4: =M4+1 -> 15,061 | O4: TO | P4: =P17 -> 18,825 | Q4: =P4+1 -> 18,826 | R4: TO | S4: =S17 -> 22,590 | T4: =S4+1 -> 22,591 | U4: & HIGHER | X4: 1 | Y4: =B4 -> 0 | Z4: =E4 -> 3766 | AA4: =H4 -> 7531 | AB4: =K4 -> 11296 | AC4: =N4 -> 15061 | AD4: =Q4 -> 18826 | AE4: =T4 -> 22591 | AF4: =HLOOKUP($AJ5,Y4:AE5,2) -> 25 | AG4: hlookup if in this row
A5: 2 | B5: 0 | C5: TO | D5: =(D4+D$16) -> 5,073 | E5: 5,074 | F5: TO | G5: =G4+G$16 -> 10,145 | H5: 10,146 | I5: TO | J5: =J4+J$16 -> 15,218 | K5: 15,219 | L5: TO | M5: =M4+M$16 -> 20,290 | N5: 20,291 | O5: TO | P5: =P4+P$16 -> 25,363 | Q5: 25,364 | R5: TO | S5: =S4+S$16 -> 30,435 | T5: 30,436 | U5: & HIGHER | W5: 1 | Y5: 25 | Z5: 20 | AA5: 15 | AB5: 10 | AC5: 5 | AD5: 0 | AE5: N/A | AJ5: =Form!G12 -> 0 | AK5: =Form!E12 -> 0 | AL5: =VLOOKUP(AK5,Income_1,9) -> 
A6: 3 | B6: 0 | C6: TO | D6: =D5+D$16 -> 6,380 | E6: 6,381 | F6: TO | G6: 12,760 | H6: 12,761 | I6: TO | J6: 19,140 | K6: 19,141 | L6: TO | M6: 25,520 | N6: 25,521 | O6: TO | P6: 31,900 | Q6: 31,901 | R6: TO | S6: 38,280 | T6: 38,281 | U6: & HIGHER | X6: 2 | Y6: =B5 -> 0 | Z6: =E5 -> 5074 | AA6: =H5 -> 10146 | AB6: =K5 -> 15219 | AC6: =N5 -> 20291 | AD6: =Q5 -> 25,364 | AE6: =T5 -> 30,436 | AF6: =HLOOKUP($AJ5,Y6:AD7,2) -> 25 | AG6: hlookup if in this row
A7: 4 | B7: 0 | C7: TO | D7: 7,688 | E7: 7,689 | F7: TO | G7: 15,375 | H7: 15,376 | I7: TO | J7: 23,063 | K7: 23,064 | L7: TO | M7: 30,750 | N7: 30,751 | O7: TO | P7: 38,438 | Q7: 38,439 | R7: TO | S7: 46,125 | T7: 46,126 | U7: & HIGHER | Y7: 25 | Z7: 20 | AA7: 15 | AB7: 10 | AC7: 5 | AD7: 0 | AE7: N/A
A8: 5 | B8: 0 | C8: TO | D8: 8,995 | E8: 8,996 | F8: TO | G8: 17,990 | H8: 17,991 | I8: TO | J8: 26,985 | K8: 26,986 | L8: TO | M8: 35,980 | N8: 35,981 | O8: TO | P8: 44,975 | Q8: 44,976 | R8: TO | S8: 53,970 | T8: 53,971 | U8: & HIGHER | X8: 3 | Y8: =B6 -> 0 | Z8: =E6 -> 6381 | AA8: =H6 -> 12761 | AB8: =K6 -> 19141 | AC8: =N6 -> 25521 | AD8: =Q6 -> 31,901 | AE8: =T6 -> 38,281 | AF8: =HLOOKUP($AJ5,Y8:AD9,2) -> 25 | AG8: hlookup if in this row
A9: 6 | B9: 0 | C9: TO | D9: 10,303 | E9: 10,304 | F9: TO | G9: 20,605 | H9: 20,606 | I9: TO | J9: 30,908 | K9: 30,909 | L9: TO | M9: 41,210 | N9: 41,211 | O9: TO | P9: 51,513 | Q9: 51,514 | R9: TO | S9: 61,815 | T9: 61,816 | U9: & HIGHER | Y9: 25 | Z9: 20 | AA9: 15 | AB9: 10 | AC9: 5 | AD9: 0 | AE9: N/A
A10: 7 | B10: 0 | C10: TO | D10: 11,610 | E10: 11,611 | F10: TO | G10: 23,220 | H10: 23,221 | I10: TO | J10: 34,830 | K10: 34,831 | L10: TO | M10: 46,440 | N10: 46,441 | O10: TO | P10: 58,050 | Q10: 58,051 | R10: TO | S10: 69,660 | T10: 69,661 | U10: & HIGHER | X10: 4 | Y10: =B7 -> 0 | Z10: =E7 -> 7689 | AA10: =H7 -> 15376 | AB10: =K7 -> 23064 | AC10: =N7 -> 30751 | AD10: =Q7 -> 38,439 | AE10: =T7 -> 46,126 | AF10: =HLOOKUP($AJ5,Y10:AD11,2) -> 25 | AG10: hlookup if in this row
A11: 8 | B11: 0 | C11: TO | D11: 12,918 | E11: 12,919 | F11: TO | G11: 25,835 | H11: 25,836 | I11: TO | J11: 38,753 | K11: 38,754 | L11: TO | M11: 51,670 | N11: 51,671 | O11: TO | P11: 64,588 | Q11: 64,589 | R11: TO | S11: 77,505 | T11: 77,506 | U11: & HIGHER | Y11: 25 | Z11: 20 | AA11: 15 | AB11: 10 | AC11: 5 | AD11: 0 | AE11: N/A
A12: 9 | B12: 0 | C12: TO | D12: 14,225 | E12: 14,226 | F12: TO | G12: 28,450 | H12: 28,451 | I12: TO | J12: 42,675 | K12: 42,676 | L12: TO | M12: 56,900 | N12: 56,901 | O12: TO | P12: 71,125 | Q12: 71,126 | R12: TO | S12: 85,350 | T12: 85,351 | U12: & HIGHER | X12: 5 | Y12: =B8 -> 0 | Z12: =E8 -> 8996 | AA12: =H8 -> 17991 | AB12: =K8 -> 26986 | AC12: =N8 -> 35981 | AD12: =Q8 -> 44,976 | AE12: =T8 -> 53,971 | AF12: =HLOOKUP($AJ5,Y12:AD13,2) -> 25 | AG12: hlookup if in this row
A13: 10 | B13: 0 | C13: TO | D13: 15,533 | E13: 15,534 | F13: TO | G13: 31,065 | H13: 31,066 | I13: TO | J13: 46,598 | K13: 46,599 | L13: TO | M13: 62,130 | N13: 62,131 | O13: TO | P13: 77,663 | Q13: 77,664 | R13: TO | S13: 93,195 | T13: 93,196 | U13: & HIGHER | Y13: 25 | Z13: 20 | AA13: 15 | AB13: 10 | AC13: 5 | AD13: 0 | AE13: N/A
A14: 11 | B14: 0 | C14: TO | D14: 16,840 | E14: 16,841 | F14: TO | G14: 33,680 | H14: 33,681 | I14: TO | J14: 50,520 | K14: 50,521 | L14: TO | M14: 67,360 | N14: 67,361 | O14: TO | P14: 84,200 | Q14: 84,201 | R14: TO | S14: 101,040 | T14: 101,041 | U14: & HIGHER | X14: 6 | Y14: =B9 -> 0 | Z14: =E9 -> 10304 | AA14: =H9 -> 20606 | AB14: =K9 -> 30909 | AC14: =N9 -> 41211 | AD14: =Q9 -> 51,514 | AE14: =T9 -> 61,816 | AF14: =HLOOKUP($AJ5,Y14:AD15,2) -> 25 | AG14: hlookup if in this row
A15: 12 | B15: 0 | C15: TO | D15: 18,148 | E15: 18,149 | F15: TO | G15: 36,295 | H15: 36,296 | I15: TO | J15: 54,443 | K15: 54,444 | L15: TO | M15: 72,590 | N15: 72,591 | O15: TO | P15: 90,738 | Q15: 90,739 | R15: TO | S15: 108,885 | T15: 108,886 | U15: & HIGHER | Y15: 25 | Z15: 20 | AA15: 15 | AB15: 10 | AC15: 5 | AD15: 0 | AE15: N/A
A16: EACH PERSON OVER 12 ADD | D16: =D18 -> 1,308 | G16: =G18 -> 2,615 | J16: =J18 -> 3,923 | M16: =M18 -> 5,230 | P16: =P18 -> 6,538 | S16: =S18 -> 7,845 | T16: 7,846 | U16: & HIGHER | X16: 7 | Y16: =B10 -> 0 | Z16: =E10 -> 11611 | AA16: =H10 -> 23221 | AB16: =K10 -> 34831 | AC16: =N10 -> 46441 | AD16: =Q10 -> 58,051 | AE16: =T10 -> 69,661 | AF16: =HLOOKUP($AJ5,Y16:AD17,2) -> 25 | AG16: hlookup if in this row
B17: @ 25% = | D17: =$M$17*0.25 -> 3,765 | E17: @ 50% = | G17: =$M$17*0.5 -> 7,530 | H17: @ 75% = | J17: =$M$17*0.75 -> 11,295 | K17: @ 100% = | M17: 15,060 | N17: @ 125% = | P17: =$M$17*1.25 -> 18,825 | Q17: @150% | R17: = | S17: =M17*1.5 -> 22,590 | Y17: 25 | Z17: 20 | AA17: 15 | AB17: 10 | AC17: 5 | AD17: 0 | AE17: N/A
B18: @ Add'l: | D18: =M18*0.25 -> 1,308 | E18: @ Add'l: | G18: =M18*0.5 -> 2,615 | H18: @ Add'l: | J18: =M18*0.75 -> 3,923 | K18: @ Add'l: | M18: 5,230 | N18: @ Add'l: | P18: =M18*1.25 -> 6,538 | S18: =M18*1.5 -> 7,845 | X18: 8 | Y18: =B11 -> 0 | Z18: =E11 -> 12919 | AA18: =H11 -> 25836 | AB18: =K11 -> 38754 | AC18: =N11 -> 51671 | AD18: =Q11 -> 64,589 | AE18: =T11 -> 77,506 | AF18: =HLOOKUP($AJ5,Y18:AD19,2) -> 25 | AG18: hlookup if in this row
A19: FPIG = | B19: Federal Poverty Income Guidelines (Health & Human Services Poverty Guidelines) | M19: PG = | N19: Poverty Guidelines | Y19: 25 | Z19: 20 | AA19: 15 | AB19: 10 | AC19: 5 | AD19: 0 | AE19: N/A
X20: 9 | Y20: =B12 -> 0 | Z20: =E12 -> 14226 | AA20: =H12 -> 28451 | AB20: =K12 -> 42676 | AC20: =N12 -> 56901 | AD20: =Q12 -> 71,126 | AE20: =T12 -> 85,351 | AF20: =HLOOKUP($AJ5,Y20:AD21,2) -> 25 | AG20: hlookup if in this row
Y21: 25 | Z21: 20 | AA21: 15 | AB21: 10 | AC21: 5 | AD21: 0 | AE21: N/A
X22: 10 | Y22: =B13 -> 0 | Z22: =E13 -> 15534 | AA22: =H13 -> 31066 | AB22: =K13 -> 46599 | AC22: =N13 -> 62131 | AD22: =Q13 -> 77,664 | AE22: =T13 -> 93,196 | AF22: =HLOOKUP($AJ5,Y22:AD23,2) -> 25 | AG22: hlookup if in this row
Y23: 25 | Z23: 20 | AA23: 15 | AB23: 10 | AC23: 5 | AD23: 0 | AE23: N/A
X24: 11 | Y24: =B14 -> 0 | Z24: =E14 -> 16841 | AA24: =H14 -> 33681 | AB24: =K14 -> 50521 | AC24: =N14 -> 67361 | AD24: =Q14 -> 84,201 | AE24: =T14 -> 101,041 | AF24: =HLOOKUP($AJ5,Y24:AD25,2) -> 25 | AG24: hlookup if in this row
Y25: 25 | Z25: 20 | AA25: 15 | AB25: 10 | AC25: 5 | AD25: 0 | AE25: N/A
X26: 12 | Y26: =B15 -> 0 | Z26: =E15 -> 18149 | AA26: =H15 -> 36296 | AB26: =K15 -> 54444 | AC26: =N15 -> 72591 | AD26: =Q15 -> 90,739 | AE26: =T15 -> 108,886 | AF26: =HLOOKUP($AJ5,Y26:AD27,2) -> 25 | AG26: hlookup if in this row
Y27: 25 | Z27: 20 | AA27: 15 | AB27: 10 | AC27: 5 | AD27: 0 | AE27: N/A

Sheet TribePartI (2) (hidden)
A1: PART I - TRIBAL WORK PLAN | L1: Date: | N1: =IF(Profile!D17=0,"",Profile!D17) -> 
A2: 1 | B2: Work Plan for Fiscal Year: | E2: =IF(Profile!D9=0,"",Profile!D9) ->  | K2: Name: | L2: =IF(Profile!D10=0,"",Profile!D10) -> 
A3: 2 | B3: Name of Tribe / Consortium: | E3: =IF(Profile!D6=0,"",Profile!D6) ->  | K3: Title: | L3: =IF(Profile!D11=0,"",Profile!D11) -> 
A4: 3 | B4: Number of Eligible Applicants: | E4: =IF(M2052=0,"",M2052) -> 10 | K4: Phone: | L4: =IF(Profile!D12=0,"",Profile!D12) -> 
A5: 4 | B5: Number of Applications Received: | E5: =IF(B2052=0,"",B2052) -> Pretty Weasel | K5: Fax: | L5: =IF(Profile!D13=0,"",Profile!D13) -> 
B6: See instructions for printing form
A7: 5. Name of Eligible Applicant (ranked in order of need) | E7: 6. Applicant's Servicing Tribe | F7: 7. Program Category (Enter One As Applicable) | K7: 8a. Estimated Start Date | L7: 8b. Estimated Project Costs 25 CFR 256.17(b))** | M7: Eligibility Status | N7: 8c. Priority Ranking Points (ranked in order from highest to lowest)
B9: Last | C9: First | D9: Suffix | F9: (A) | G9: (B) | H9: (C-1) | I9: (C-2) | J9: (D)
A10: 1 | B10: Charbonneau | C10: Richard | D10: J | E10: Turtle Montain Band of Chippewa | I10: C-2 | K10: 42,186 | L10: 120000 | M10: 57 | N10: 81
A11: =A10+1 -> 2 | B11: Grant | C11: Francis | D11: P | E11: Turtle Montain Band of Chippewa | H11: C-1 | K11: 42,186 | L11: 120000 | M11: 54 | N11: 70
A12: =A11+1 -> 3 | B12: Grandboise | C12: Donald | E12: Turtle Montain Band of Chippewa | H12: C-1 | K12: 42,186 | L12: 120000 | M12: 50 | N12: 60
A13: 4 | B13: Janis | C13: Leo | E13: Oglala Sioux Tribe | H13: C-1 | K13: 42,186 | L13: 120000 | M13: 0
A14: 5 | B14: Black Smith | C14: Pete | E14: Oglala Sioux Tribe | G14: B | K14: 42,186 | L14: 35000 | M14: 0
A15: 6 | B15: Brewer | C15: Jennifer | E15: Oglala Sioux Tribe | H15: C-1 | K15: 42,186 | L15: 120000 | M15: 2
A16: 7 | B16: Grass | C16: Kirsten | E16: Oglala Sioux Tribe | H16: C-1 | K16: 42,186 | L16: 120000 | M16: 2
A17: 8 | B17: Tobacco | C17: Hattie | E17: Oglala Sioux Tribe | H17: C-1 | K17: 42,186 | L17: 120000 | M17: 3
A18: 9 | B18: Fox | C18: Holly | E18: Three Affiliated Tribes | H18: C-1 | K18: 42,186 | L18: 120000 | M18: 3
A19: 10 | B19: Gegleman | C19: Anita | E19: Three Affiliated Tribes | H19: C-1 | K19: 42,186 | L19: 120000 | M19: 3
A20: 11 | B20: Crows Heart | C20: Richard | E20: Three Affiliated Tribes | H20: C-1 | K20: 42,186 | L20: 120000 | M20: 3
A21: 12 | B21: Morrison | C21: Beverly | E21: Cheyenne River Sioux Tribe | I21: C-2 | K21: 42,186 | L21: 120000 | M21: 3
A22: 13 | B22: McCoy | C22: Hanni | E22: Three Affiliated Tribes | H22: C-1 | K22: 42,186 | L22: 120000 | M22: 4
A23: 14 | B23: Felix-Wells | C23: Corrine | E23: Three Affiliated Tribes | H23: C-1 | K23: 42,186 | L23: 120000 | M23: 5
A24: 15 | B24: Black Hawk | C24: Dinah | E24: Three Affiliated Tribes | H24: C-1 | K24: 42,186 | L24: 120000 | M24: 5
A25: 16 | B25: Looks Twice | C25: Georgine | E25: Oglala Sioux Tribe | G25: B | K25: 42,186 | L25: 35000 | M25: 6
A26: 17 | B26: Walks Out | C26: Darlene | E26: Oglala Sioux Tribe | G26: B | K26: 42,186 | L26: 35000 | M26: 7
A27: 18 | B27: Brave Eagle | C27: Theresa | E27: Oglala Sioux Tribe | H27: C-1 | K27: 42,186 | L27: 120000 | M27: 8
A28: 19 | B28: Murphy | C28: Claire | E28: Turtle Montain Band of Chippewa | H28: C-1 | K28: 42,186 | L28: 120000 | M28: 10
A29: 20 | B29: Trottier | C29: Tresa | E29: Turtle Montain Band of Chippewa | G29: B | K29: 42,186 | L29: 35000 | M29: 10
A30: 21 | B30: James | C30: Christina | E30: Turtle Montain Band of Chippewa | G30: B | K30: 42,186 | L30: 35000 | M30: 10
A31: 22 | B31: Decoteau | C31: Tammy | E31: Turtle Montain Band of Chippewa | H31: C-1 | K31: 42,186 | L31: 120000 | M31: 10
A32: 23 | B32: Desjarlais | C32: Lisa | D32: M | E32: Turtle Montain Band of Chippewa | G32: B | K32: 42,186 | L32: 35000 | M32: 10
A33: 24 | B33: Scott | C33: Alice | E33: Turtle Montain Band of Chippewa | G33: B | K33: 42,186 | L33: 35000 | M33: 10
A34: 25 | B34: Payer | C34: Vicky | E34: Turtle Montain Band of Chippewa | G34: B | K34: 42,186 | L34: 35000 | M34: 10
A35: 26 | B35: Nadeau | C35: Felicia | E35: Turtle Montain Band of Chippewa | H35: C-1 | K35: 42,186 | L35: 120000 | M35: 10
A36: 27 | B36: Bercier | C36: Jerilyn | E36: Turtle Montain Band of Chippewa | H36: C-1 | K36: 42,186 | L36: 120000 | M36: 10
A37: 28 | B37: Brien | C37: Patricia | E37: Turtle Montain Band of Chippewa | H37: C-1 | K37: 42,186 | L37: 120000 | M37: 10
A38: 29 | B38: Lavallie | C38: Jamie | E38: Turtle Montain Band of Chippewa | H38: C-1 | K38: 42,186 | L38: 120000 | M38: 10
A39: 30 | B39: Decoteau | C39: Monica | E39: Turtle Montain Band of Chippewa | G39: B | K39: 42,186 | L39: 35000 | M39: 10
A40: 31 | B40: Handy | C40: Debra | E40: Turtle Montain Band of Chippewa | G40: B | K40: 42,186 | L40: 35000 | M40: 10
A41: 32 | B41: Schroeder | C41: Brooke | E41: Turtle Montain Band of Chippewa | H41: C-1 | K41: 42,186 | L41: 120000 | M41: 10
A42: 33 | B42: Davis | C42: Francine | E42: Turtle Montain Band of Chippewa | H42: C-1 | K42: 42,186 | L42: 120000 | M42: 10
A43: 34 | B43: Azure | C43: Holly | E43: Turtle Montain Band of Chippewa | H43: C-1 | K43: 42,186 | L43: 120000 | M43: 10
A44: 35 | B44: Gourneau | C44: Dianna | E44: Turtle Montain Band of Chippewa | H44: C-1 | K44: 42,186 | L44: 120000 | M44: 10
A45: 36 | B45: Grant | C45: Austin | E45: Turtle Montain Band of Chippewa | H45: C-1 | K45: 42,186 | L45: 120000 | M45: 10
A46: 37 | B46: Fox | C46: Marla | E46: Turtle Montain Band of Chippewa | G46: B | K46: 42,186 | L46: 35000 | M46: 10
A47: 38 | B47: Martin | C47: Anita | E47: Turtle Montain Band of Chippewa | H47: C-1 | K47: 42,186 | L47: 120000 | M47: 10
A48: 39 | B48: Hanson | C48: Cherie | E48: Turtle Montain Band of Chippewa | H48: C-1 | K48: 42,186 | L48: 120000 | M48: 10
A49: 40 | B49: Keplin | C49: Mark | D49: Jr | E49: Turtle Montain Band of Chippewa | H49: C-1 | K49: 42,186 | L49: 120000 | M49: 10
A50: 41 | B50: Gunville | C50: Janelle | E50: Turtle Montain Band of Chippewa | G50: B | K50: 42,186 | L50: 35000 | M50: 10
A51: 42 | B51: Poitra | C51: Kim | E51: Turtle Montain Band of Chippewa | G51: B | K51: 42,186 | L51: 35000 | M51: 10
A52: 43 | B52: Morin | C52: Alisha | E52: Turtle Montain Band of Chippewa | H52: C-1 | K52: 42,186 | L52: 120000 | M52: 10
A53: 44 | B53: Desjarlais | C53: Ardis | E53: Turtle Montain Band of Chippewa | H53: C-1 | K53: 42,186 | L53: 120000 | M53: 10
A54: 45 | B54: Peltier | C54: Matthew | E54: Turtle Montain Band of Chippewa | H54: C-1 | K54: 42,186 | L54: 120000 | M54: 10
A55: 46 | B55: Gourneau | C55: Rodney | E55: Turtle Montain Band of Chippewa | H55: C-1 | K55: 42,186 | L55: 120000 | M55: 10
A56: 47 | B56: Peltier | C56: Roderick | E56: Turtle Montain Band of Chippewa | H56: C-1 | K56: 42,186 | L56: 120000 | M56: 10
A57: 48 | B57: Lafountain | C57: Shana | E57: Turtle Montain Band of Chippewa | G57: B | K57: 42,186 | L57: 35000 | M57: 10
A58: 49 | B58: Keplin | C58: Terry | E58: Turtle Montain Band of Chippewa | H58: C-1 | K58: 42,186 | L58: 120000 | M58: 10
A59: 50 | B59: Thomas | C59: James | E59: Turtle Montain Band of Chippewa | H59: C-1 | K59: 42,186 | L59: 120000 | M59: 10
A60: 51 | B60: Malaterre | C60: Dianne | E60: Turtle Montain Band of Chippewa | G60: B | K60: 42,186 | L60: 35000 | M60: 10
A61: 52 | B61: Belgarde | C61: Larry | E61: Turtle Montain Band of Chippewa | G61: B | K61: 42,186 | L61: 35000 | M61: 10
A62: 53 | B62: Johnson | C62: Sarah | E62: Turtle Montain Band of Chippewa | H62: C-1 | K62: 42,186 | L62: 120000 | M62: 10
A63: 54 | B63: Decoteau | C63: Bryce | E63: Turtle Montain Band of Chippewa | H63: C-1 | K63: 42,186 | L63: 120000 | M63: 10
A64: 55 | B64: Morin | C64: Kristen | E64: Turtle Montain Band of Chippewa | G64: B | K64: 42,186 | L64: 35000 | M64: 10
A65: 56 | B65: Azure | C65: Matthew | E65: Turtle Montain Band of Chippewa | H65: C-1 | K65: 42,186 | L65: 120000 | M65: 10
A66: 57 | B66: Davis | C66: Jamie | E66: Turtle Montain Band of Chippewa | H66: C-1 | K66: 42,186 | L66: 120000 | M66: 10
A67: 58 | B67: Jeanotte | C67: Faith | E67: Turtle Montain Band of Chippewa | H67: C-1 | K67: 42,186 | L67: 120000 | M67: 10
A68: 59 | B68: Walter | C68: Jetney | E68: Turtle Montain Band of Chippewa | H68: C-1 | K68: 42,186 | L68: 120000 | M68: 10
A69: 60 | B69: Peltier | C69: Harvey | D69: Jr | E69: Turtle Montain Band of Chippewa | H69: C-1 | K69: 42,186 | L69: 120000 | M69: 10
A70: 61 | B70: Poitra | C70: Sheila | E70: Turtle Montain Band of Chippewa | H70: C-1 | K70: 42,186 | L70: 120000 | M70: 10
A71: 62 | B71: Munoz | C71: Geraldine | E71: Turtle Montain Band of Chippewa | G71: B | K71: 42,186 | L71: 35000 | M71: 10
A72: 63 | B72: Owens | C72: Misty | E72: Turtle Montain Band of Chippewa | H72: C-1 | K72: 42,186 | L72: 120000 | M72: 10
A73: 64 | B73: Marcellais | C73: Cameron | E73: Turtle Montain Band of Chippewa | G73: B | K73: 42,186 | L73: 35000 | M73: 10
A74: 65 | B74: Parisien | C74: Nadine | E74: Turtle Montain Band of Chippewa | G74: B | K74: 42,186 | L74: 35000 | M74: 10
A75: 66 | B75: Lafountain | C75: April | E75: Turtle Montain Band of Chippewa | G75: B | K75: 42,186 | L75: 35000 | M75: 10
A76: =A75+1 -> 67 | B76: Houle | C76: Stephanie | E76: Turtle Montain Band of Chippewa | G76: B | K76: 42,186 | L76: 35000 | M76: 10
A77: 68 | B77: Delorme | C77: Darrell | E77: Turtle Montain Band of Chippewa | H77: C-1 | K77: 42,186 | L77: 120000 | M77: 10
A78: 69 | B78: Lafromboise | C78: Clifford | D78: Jr | E78: Turtle Montain Band of Chippewa | G78: B | K78: 42,186 | L78: 35000 | M78: 10
A79: 70 | B79: Peltier | C79: Rita | E79: Turtle Montain Band of Chippewa | G79: B | K79: 42,186 | L79: 35000 | M79: 10
A80: 71 | B80: Oslin | C80: Cheryl | E80: Turtle Montain Band of Chippewa | G80: B | K80: 42,186 | L80: 35000 | M80: 10
A81: 72 | B81: Longie | C81: Robert | E81: Turtle Montain Band of Chippewa | G81: B | K81: 42,186 | L81: 35000 | M81: 10
A82: 73 | B82: Wallette | C82: Felix | E82: Turtle Montain Band of Chippewa | G82: B | K82: 42,186 | L82: 35000 | M82: 10
A83: 74 | B83: Gourneau | C83: Antoine | E83: Turtle Montain Band of Chippewa | G83: B | K83: 42,186 | L83: 35000 | M83: 10
A84: 75 | B84: Morin | C84: Roland | E84: Turtle Montain Band of Chippewa | G84: B | K84: 42,186 | L84: 35000 | M84: 10
A85: 76 | B85: Desjarlais | C85: Lisa | E85: Turtle Montain Band of Chippewa | G85: B | K85: 42,186 | L85: 35000 | M85: 10
A86: 77 | B86: Hyde | C86: Margaret | E86: Turtle Montain Band of Chippewa | G86: B | K86: 42,186 | L86: 35000 | M86: 10
A87: 78 | B87: Charette | C87: Maryann | E87: Turtle Montain Band of Chippewa | G87: B | K87: 42,186 | L87: 35000 | M87: 10
A88: 79 | B88: Zaste | C88: Shelly | E88: Turtle Montain Band of Chippewa | H88: C-1 | K88: 42,186 | L88: 120000 | M88: 10
A89: 80 | B89: Allery | C89: Dorine | E89: Turtle Montain Band of Chippewa | H89: C-1 | K89: 42,186 | L89: 120000 | M89: 10
A90: 81 | B90: Frederick | C90: David | E90: Turtle Montain Band of Chippewa | H90: C-1 | K90: 42,186 | L90: 120000 | M90: 10
A91: 82 | B91: Larocque | C91: Roxanne | E91: Turtle Montain Band of Chippewa | H91: C-1 | K91: 42,186 | L91: 120000 | M91: 10
A92: 83 | B92: Jeanotte | C92: Barbara | E92: Turtle Montain Band of Chippewa | H92: C-1 | K92: 42,186 | L92: 120000 | M92: 10
A93: 84 | B93: Hawley | C93: Rosa | E93: Turtle Montain Band of Chippewa | H93: C-1 | K93: 42,186 | L93: 120000 | M93: 10
A94: 85 | B94: St. Claire | C94: Nina | E94: Turtle Montain Band of Chippewa | H94: C-1 | K94: 42,186 | L94: 120000 | M94: 10
A95: 86 | B95: Amyotte | C95: Norbert | E95: Turtle Montain Band of Chippewa | G95: B | K95: 42,186 | L95: 35000 | M95: 10
A96: 87 | B96: Allery | C96: Lou ann | E96: Turtle Montain Band of Chippewa | G96: B | K96: 42,186 | L96: 35000 | M96: 10
A97: 88 | B97: Akewanzie | C97: Marvin | E97: Turtle Montain Band of Chippewa | H97: C-1 | K97: 42,186 | L97: 120000 | M97: 10
A98: 89 | B98: Smith | C98: Bonita | E98: Turtle Montain Band of Chippewa | G98: B | K98: 42,186 | L98: 35000 | M98: 10
A99: 90 | B99: Trottier | C99: Antoinette | E99: Turtle Montain Band of Chippewa | G99: B | K99: 42,186 | L99: 35000 | M99: 10
A100: 91 | B100: Counts | C100: Roger | E100: Turtle Montain Band of Chippewa | G100: B | K100: 42,186 | L100: 35000 | M100: 10
A101: 92 | B101: Crissler | C101: Angela | E101: Turtle Montain Band of Chippewa | H101: C-1 | K101: 42,186 | L101: 120000 | M101: 10
A102: 93 | B102: Morin | C102: Paul | E102: Turtle Montain Band of Chippewa | G102: B | K102: 42,186 | L102: 35000 | M102: 10
A103: 94 | B103: Houle | C103: Barbara | E103: Turtle Montain Band of Chippewa | G103: B | K103: 42,186 | L103: 35000 | M103: 10
A104: 95 | B104: Bruce | C104: Gene | E104: Turtle Montain Band of Chippewa | H104: C-1 | K104: 42,186 | L104: 120000 | M104: 10
A105: 96 | B105: Wallette | C105: Doris | E105: Turtle Montain Band of Chippewa | G105: B | K105: 42,186 | L105: 35000 | M105: 10
A106: 97 | B106: Delong | C106: Frederick | E106: Turtle Montain Band of Chippewa | G106: B | K106: 42,186 | L106: 35000 | M106: 10
A107: 98 | B107: Houle | C107: Wanda | E107: Turtle Montain Band of Chippewa | G107: B | K107: 42,186 | L107: 35000 | M107: 10
A108: 99 | B108: Larocque | C108: Garry | E108: Turtle Montain Band of Chippewa | G108: B | K108: 42,186 | L108: 35000 | M108: 10
A109: 100 | B109: Decoteau | C109: Roberta | E109: Turtle Montain Band of Chippewa | G109: B | K109: 42,186 | L109: 35000 | M109: 10
A110: 101 | B110: Lavallie | C110: Peter | E110: Turtle Montain Band of Chippewa | G110: B | K110: 42,186 | L110: 35000 | M110: 10
A111: 102 | B111: Davis | C111: Marla | E111: Turtle Montain Band of Chippewa | G111: B | K111: 42,186 | L111: 35000 | M111: 10
A112: 103 | B112: Lavallie | C112: Cindy | E112: Turtle Montain Band of Chippewa | G112: B | K112: 42,186 | L112: 35000 | M112: 10
A113: 104 | B113: Larocque | C113: Elaine | E113: Turtle Montain Band of Chippewa | G113: B | K113: 42,186 | L113: 35000 | M113: 10
A114: 105 | B114: Decoteau | C114: Lisa | D114: G | E114: Turtle Montain Band of Chippewa | G114: B | K114: 42,186 | L114: 35000 | M114: 10
A115: 106 | B115: Gourneau | C115: Debra | E115: Turtle Montain Band of Chippewa | G115: B | K115: 42,186 | L115: 35000 | M115: 10
A116: 107 | B116: Higgins | C116: Theresa | E116: Turtle Montain Band of Chippewa | G116: B | K116: 42,186 | L116: 35000 | M116: 10
A117: 108 | B117: Lenoir | C117: Patty | E117: Turtle Montain Band of Chippewa | G117: B | K117: 42,186 | L117: 35000 | M117: 10
A118: 109 | B118: St. Claire | C118: Winnona | E118: Turtle Montain Band of Chippewa | H118: C-1 | K118: 42,186 | L118: 120000 | M118: 10
A119: 110 | B119: Lavallie | C119: Louis | E119: Turtle Montain Band of Chippewa | G119: B | K119: 42,186 | L119: 35000 | M119: 10
A120: 111 | B120: Falcon | C120: George | D120: Sr | E120: Turtle Montain Band of Chippewa | H120: C-1 | K120: 42,186 | L120: 120000 | M120: 10
A121: 112 | B121: Chase | C121: Todd | E121: Turtle Montain Band of Chippewa | G121: B | K121: 42,186 | L121: 35000 | M121: 10
A122: 113 | B122: Lafountain | C122: Larry | D122: J | E122: Turtle Montain Band of Chippewa | H122: C-1 | K122: 42,186 | L122: 120000 | M122: 10
A123: 114 | B123: Decoteau | C123: Vernon | E123: Turtle Montain Band of Chippewa | G123: B | K123: 42,186 | L123: 35000 | M123: 10
A124: 115 | B124: Lunday | C124: Brent | E124: Turtle Montain Band of Chippewa | G124: B | K124: 42,186 | L124: 35000 | M124: 10
A125: 116 | B125: Nadeau | C125: Gale | E125: Turtle Montain Band of Chippewa | G125: B | K125: 42,186 | L125: 35000 | M125: 10
A126: 117 | B126: Houle | C126: Donna | E126: Turtle Montain Band of Chippewa | G126: B | K126: 42,186 | L126: 35000 | M126: 10
A127: 118 | B127: Monette | C127: Loretta | E127: Turtle Montain Band of Chippewa | G127: B | K127: 42,186 | L127: 35000 | M127: 10
A128: 119 | B128: Morin | C128: Vicky | E128: Turtle Montain Band of Chippewa | G128: B | K128: 42,186 | L128: 35000 | M128: 10
A129: 120 | B129: Lavallie | C129: Edward | E129: Turtle Montain Band of Chippewa | H129: C-1 | K129: 42,186 | L129: 120000 | M129: 10
A130: 121 | B130: Greatwalker | C130: Shelly | E130: Turtle Montain Band of Chippewa | G130: B | K130: 42,186 | L130: 35000 | M130: 10
A131: 122 | B131: Burschinger | C131: James | E131: Turtle Montain Band of Chippewa | H131: C-1 | K131: 42,186 | L131: 120000 | M131: 10
A132: 123 | B132: Maxon | C132: Tracy | E132: Turtle Montain Band of Chippewa | G132: B | K132: 42,186 | L132: 35000 | M132: 10
A133: 124 | B133: Delorme | C133: Chelsi | E133: Turtle Montain Band of Chippewa | H133: C-1 | K133: 42,186 | L133: 120000 | M133: 10
A134: 125 | B134: Champagne | C134: Sandra | E134: Turtle Montain Band of Chippewa | G134: B | K134: 42,186 | L134: 35000 | M134: 10
A135: 126 | B135: Decoteau | C135: Jana | E135: Turtle Montain Band of Chippewa | H135: C-1 | K135: 42,186 | L135: 120000 | M135: 10
A136: 127 | B136: Benson | C136: Anita | E136: Turtle Montain Band of Chippewa | G136: B | K136: 42,186 | L136: 35000 | M136: 10
A137: 128 | B137: Counts | C137: Carletta | E137: Turtle Montain Band of Chippewa | H137: C-1 | K137: 42,186 | L137: 120000 | M137: 10
A138: 129 | B138: Davis | C138: Uriah | E138: Turtle Montain Band of Chippewa | H138: C-1 | K138: 42,186 | L138: 120000 | M138: 10
A139: 130 | B139: Morin | C139: Rhonda | E139: Turtle Montain Band of Chippewa | G139: B | K139: 42,186 | L139: 35000 | M139: 10
A140: =A139+1 -> 131 | B140: Keplin | C140: April | E140: Turtle Montain Band of Chippewa | G140: B | K140: 42,186 | L140: 35000 | M140: 10
A141: 132 | B141: St. Claire | C141: Shay | E141: Turtle Montain Band of Chippewa | H141: C-1 | K141: 42,186 | L141: 120000 | M141: 10
A142: 133 | B142: Frederick | C142: Hope | E142: Turtle Montain Band of Chippewa | G142: B | K142: 42,186 | L142: 35000 | M142: 10
A143: 134 | B143: Wallette | C143: Samantha | E143: Turtle Montain Band of Chippewa | H143: C-1 | K143: 42,186 | L143: 120000 | M143: 10
A144: 135 | B144: Lavallie | C144: Linus | E144: Turtle Montain Band of Chippewa | G144: B | K144: 42,186 | L144: 35000 | M144: 10
A145: 136 | B145: Gourneau | C145: Margo | E145: Turtle Montain Band of Chippewa | G145: B | K145: 42,186 | L145: 35000 | M145: 10
A146: 137 | B146: Poitra | C146: Kyla | E146: Turtle Montain Band of Chippewa | G146: B | K146: 42,186 | L146: 35000 | M146: 10
A147: 138 | B147: Lavallie | C147: Shelly | E147: Turtle Montain Band of Chippewa | H147: C-1 | K147: 42,186 | L147: 120000 | M147: 10
A148: 139 | B148: Poitra | C148: Brett | E148: Turtle Montain Band of Chippewa | G148: B | K148: 42,186 | L148: 35000 | M148: 10
A149: 140 | B149: Azure | C149: Myron | E149: Turtle Montain Band of Chippewa | H149: C-1 | K149: 42,186 | L149: 120000 | M149: 10
A150: 141 | B150: Decoteau | C150: Brandy | E150: Turtle Montain Band of Chippewa | H150: C-1 | K150: 42,186 | L150: 120000 | M150: 10
A151: 142 | B151: Baker | C151: Larry | D151: Jr | E151: Turtle Montain Band of Chippewa | H151: C-1 | K151: 42,186 | L151: 120000 | M151: 10
A152: 143 | B152: Azure | C152: Jenita | E152: Turtle Montain Band of Chippewa | G152: B | K152: 42,186 | L152: 35000 | M152: 10
A153: 144 | B153: Vondal | C153: Kevin | E153: Turtle Montain Band of Chippewa | G153: B | K153: 42,186 | L153: 35000 | M153: 10
A154: 145 | B154: Laverdure | C154: Napoleon | E154: Turtle Montain Band of Chippewa | H154: C-1 | K154: 42,186 | L154: 120000 | M154: 10
A155: 146 | B155: Blue | C155: Yvonne | E155: Turtle Montain Band of Chippewa | H155: C-1 | K155: 42,186 | L155: 120000 | M155: 10
A156: 147 | B156: Morin | C156: Ramona | E156: Turtle Montain Band of Chippewa | G156: B | K156: 42,186 | L156: 35000 | M156: 10
A157: 148 | B157: Delonais | C157: Jessica | E157: Turtle Montain Band of Chippewa | G157: B | K157: 42,186 | L157: 35000 | M157: 10
A158: 149 | B158: Gourneau | C158: Terri | E158: Turtle Montain Band of Chippewa | G158: B | K158: 42,186 | L158: 35000 | M158: 10
A159: 150 | B159: Poitra | C159: Melinda | E159: Turtle Montain Band of Chippewa | G159: B | K159: 42,186 | L159: 35000 | M159: 10
A160: 151 | B160: Lafountain | C160: Leslie | E160: Turtle Montain Band of Chippewa | G160: B | K160: 42,186 | L160: 35000 | M160: 10
A161: 152 | B161: Parisien | C161: Lorraine | E161: Turtle Montain Band of Chippewa | G161: B | K161: 42,186 | L161: 35000 | M161: 10
A162: 153 | B162: Reopolle | C162: Farrah | E162: Turtle Montain Band of Chippewa | G162: B | K162: 42,186 | L162: 35000 | M162: 10
A163: 154 | B163: Delong | C163: Art | E163: Turtle Montain Band of Chippewa | G163: B | K163: 42,186 | L163: 35000 | M163: 10
A164: 155 | B164: Keplin | C164: Raylene | E164: Turtle Montain Band of Chippewa | G164: B | K164: 42,186 | L164: 35000 | M164: 10
A165: 156 | B165: Gunville | C165: Jerry | E165: Turtle Montain Band of Chippewa | G165: B | K165: 42,186 | L165: 35000 | M165: 10
A166: 157 | B166: Chase | C166: Marilyn | E166: Turtle Montain Band of Chippewa | G166: B | K166: 42,186 | L166: 35000 | M166: 10
A167: 158 | B167: Smith | C167: John | D167: J | E167: Turtle Montain Band of Chippewa | G167: B | K167: 42,186 | L167: 35000 | M167: 10
A168: 159 | B168: Vivier | C168: Randy | E168: Turtle Montain Band of Chippewa | G168: B | K168: 42,186 | L168: 35000 | M168: 10
A169: 160 | B169: Demery | C169: Francis | E169: Turtle Montain Band of Chippewa | H169: C-1 | K169: 42,186 | L169: 120000 | M169: 10
A170: 161 | B170: Lafountain | C170: Jerilyn | E170: Turtle Montain Band of Chippewa | G170: B | K170: 42,186 | L170: 35000 | M170: 10
A171: 162 | B171: Bliss | C171: Andrea | E171: Turtle Montain Band of Chippewa | H171: C-1 | K171: 42,186 | L171: 120000 | M171: 10
A172: 163 | B172: Chavez | C172: Toni | E172: Turtle Montain Band of Chippewa | G172: B | K172: 42,186 | L172: 35000 | M172: 10
A173: 164 | B173: Robertson | C173: Dimothy | E173: Turtle Montain Band of Chippewa | G173: B | K173: 42,186 | L173: 35000 | M173: 10
A174: 165 | B174: Wessels | C174: Wade | E174: Turtle Montain Band of Chippewa | H174: C-1 | K174: 42,186 | L174: 120000 | M174: 10
A175: 166 | B175: Aiken | C175: Arlene | E175: Turtle Montain Band of Chippewa | G175: B | K175: 42,186 | L175: 35000 | M175: 10
A176: 167 | B176: Azure | C176: Cindy | E176: Turtle Montain Band of Chippewa | H176: C-1 | K176: 42,186 | L176: 120000 | M176: 10
A177: 168 | B177: Champagne | C177: Sandy | E177: Turtle Montain Band of Chippewa | G177: B | K177: 42,186 | L177: 35000 | M177: 10
A178: 169 | B178: Belgarde | C178: Clarence | E178: Turtle Montain Band of Chippewa | G178: B | K178: 42,186 | L178: 35000 | M178: 10
A179: 170 | B179: Decoteau | C179: Rhonda | E179: Turtle Montain Band of Chippewa | H179: C-1 | K179: 42,186 | L179: 120000 | M179: 10
A180: 171 | B180: Tillich | C180: Joni | E180: Turtle Montain Band of Chippewa | G180: B | K180: 42,186 | L180: 35000 | M180: 10
A181: 172 | B181: Houle | C181: Ola | E181: Turtle Montain Band of Chippewa | G181: B | K181: 42,186 | L181: 35000 | M181: 10
A182: 173 | B182: Wilson | C182: Lori | E182: Turtle Montain Band of Chippewa | H182: C-1 | K182: 42,186 | L182: 120000 | M182: 10
A183: 174 | B183: Moors | C183: Roxanne | E183: Turtle Montain Band of Chippewa | G183: B | K183: 42,186 | L183: 35000 | M183: 10
A184: 175 | B184: Brien | C184: Gerald | E184: Turtle Montain Band of Chippewa | H184: C-1 | K184: 42,186 | L184: 120000 | M184: 10
A185: 176 | B185: Hunt | C185: Cindy | E185: Turtle Montain Band of Chippewa | G185: B | K185: 42,186 | L185: 35000 | M185: 10
A186: 177 | B186: Guerue | C186: John | E186: Rosebud Sioux Tribe | H186: C-1 | K186: 42,186 | L186: 120000 | M186: 10
A187: 178 | B187: Lapointe | C187: Chantelle | E187: Rosebud Sioux Tribe | G187: B | K187: 42,186 | L187: 35000 | M187: 10
A188: 179 | B188: Roubideax | C188: Bernadette | E188: Rosebud Sioux Tribe | I188: C-2 | K188: 42,186 | L188: 120000 | M188: 10
A189: 180 | B189: Yellow Bird | C189: Laura | E189: Rosebud Sioux Tribe | G189: B | K189: 42,186 | L189: 35000 | M189: 10
A190: 181 | B190: Dixon | C190: Maybelle | E190: Rosebud Sioux Tribe | G190: B | K190: 42,186 | L190: 35000 | M190: 10
A191: 182 | B191: Young | C191: Elizabeth"Betty" | E191: Rosebud Sioux Tribe | G191: B | K191: 42,186 | L191: 35000 | M191: 10
A192: 183 | B192: Young | C192: Loretta | E192: Rosebud Sioux Tribe | H192: C-1 | K192: 42,186 | L192: 120000 | M192: 10
A193: 184 | B193: Sedlmejer | C193: Linda | E193: Rosebud Sioux Tribe | G193: B | K193: 42,186 | L193: 35000 | M193: 10
A194: 185 | B194: Allard | C194: Shiela | E194: Rosebud Sioux Tribe | H194: C-1 | K194: 42,186 | L194: 120000 | M194: 10
A195: 186 | B195: Little Elk | C195: Violet | E195: Rosebud Sioux Tribe | G195: B | K195: 42,186 | L195: 35000 | M195: 10
A196: 187 | B196: Jones | C196: Calvin | D196: sr | E196: Rosebud Sioux Tribe | H196: C-1 | K196: 42,186 | L196: 120000 | M196: 10
A197: 188 | B197: Kills In Water | C197: Roberta | E197: Rosebud Sioux Tribe | G197: B | K197: 42,186 | L197: 35000 | M197: 10
A198: 189 | B198: Decory | C198: Gordon | E198: Rosebud Sioux Tribe | G198: B | K198: 42,186 | L198: 35000 | M198: 10
A199: 190 | B199: Young | C199: Lorraine | E199: Rosebud Sioux Tribe | G199: B | K199: 42,186 | L199: 35000 | M199: 10
A200: 191 | B200: Zimmernan | C200: Betty | E200: Rosebud Sioux Tribe | G200: B | K200: 42,186 | L200: 35000 | M200: 10
A201: 192 | B201: Menard | C201: Marc | D201: sr | E201: Rosebud Sioux Tribe | I201: C-2 | K201: 42,186 | L201: 120000 | M201: 10
... 1957 more rows

Sheet Instructions
B2: This workbook was created using Windows 7, Office Suite Excel 10. There may be some compatibility issues when trying to use this workbook with an earlier version of Excel.May not work with Microsoft Excel 5.0/95 Workbook version.
B3: You are using the Electronic VBA Version of the 2019 HIP Tribal Annual Performance Report. This version shall only be used for FY 2019.
B4: This workbook contains macros and formulas, to properly use this Excel Workbook, you must save as enabled Workbook or enable the security macros.
B5: To save for use with an older version of Excel,choose Office,then Save As and select one of these options from the Save As Type dropdown list:1)Excel 97-2003 Workbook;2)Save as type:Excel Enabled Workbook;3)Save by adding your tribe name to file;(e.g. 2019 HIP Tribal Annual Performance Report - Your Tribe name)
B6: The 2019 HIP Tribal Annual Performance Report is due to your respective region by COB December 31, 2018.
B7: Before submitting this workbook to your respective Regional Office, please save as type: Excel Workbook.
B8: Operating Systems: Windows 7 or recommended Windows Vista, or Windows xp Service pack 3
B10: Profile
B11: Item Number Instructions
B12: To properly populate the combo box, please make selection in the regions dropdown box twice.
A13: 1 | B13: Select Region from Dropdown box, twice.
A14: =A13+1 -> 2 | B14: Select Tribe/Consortium from Dropdown box.
A15: =A14+1 -> 3 | B15: Press the continue button.
A16: =A15+1 -> 4 | B16: Select member Tribe of Consortia from Dropdown Box
A17: =A16+1 -> 5 | B17: Provide four digit fiscal year (FY) that identifies fiscal year in which work plan will be implemented. (Fiscal year beginning in October 1, of the current calendar year).
A18: 6 | B18: Provide name of preparer in the event we may need to contact you.
A19: 7 | B19: Select position that you are currently holding from Dropdown Box.
A20: 8 | B20: Provide phone number.
A21: 9 | B21: Provide fax number.
A22: 10 | B22: Provide email address.
A23: 11 | B23: Digital signature, will Autofill when cell "D10" is filled. (Cell is protected)
A24: 12 | B24: Will Autofill when cell "D9" is filled. (Cell is protected)
B26: Form
B27: Portions of this worksheet are protected and has formulas.
A28: 1 | B28: Provide District or Member Tribe of consortia, if applicable.
A29: =A28+1 -> 2 | B29: Provide Last Name of Applicant.
A30: =A29+1 -> 3 | B30: Provide First Name of Applicant.
A31: 4 | B31: Select Suffix Name from Dropdown Box ( i.e. Sr. Jr. III. IV)
A32: 5 | B32: Provide Tribal Enrollment number of applicant.
A33: 6 | B33: Select Category of service, applicant is requesting from Dropdown Box. (i.e. A, B, C-1, C-2, D)
A34: 7a | B34: Provide Last Name of Spouse
A35: 7b | B35: Provide year to be served
A36: 7c | B36: Provide date of when the application was signed
A37: 8 | B37: Provide First Name of Spouse.
A38: 9 | B38: Provide enrollment number of spouse.
A39: 10 | B39: Provide total amount of income for all family members.
A40: 11 | B40: Provide number of occupants in household.
A41: 12 | B41: Provide birthdate of 1st aged person. (i.e. 06/13/1950)
A42: 13 | B42: Provide degree of disability (i.e. 100%, 50%)
A43: 14 | B43: Provide number of dependents.
A44: 15 | B44: Select "Yes" if house is in dilapidated condition Select, "No" if house in in repairable condition.
A45: 16 | B45: Select "Yes" if applicant is a Native Veteran
A46: 17 | B46: Provide date when applicant signed application.
A47: 18 | B47: Select "Yes" if applicant received a letter of denial of service and is waiting list from Tribal Housing Authority. Select "Pending" if applicant will get a letter from Housing Authority at a later time. Select, "No" if applicant received housing assitance within the last 20 years. (Has Hyperlink)
A48: 19 | B48: Provide an Estimated Start Date. (i.e. 07/16/2013)
A49: 20 | B49: Provide an Estimated cost for project. (i.e. 130,000)
A50: 21 | B50: Click the "Transfer" button to print Priority Calculation sheet and transfer data to worksheets "Priority Calculation" and "Tribe Part I". Place printed calculation sheet in Applicant case file.
A51: 22 | B51: For extra sheets, Click the "Print" button to print the Calculation sheet .
A52: 23
A53: 24
B55: *Program Category: (A) Interim Improvements; (B) Renovations; (C-1) Replacement Housing (replacement of existing, substandard dwelling); (C-2) Replacement Housing (housing provided, no existing dwelling)
B56: Priority List Form
B57: Portions of this worksheet are protected and has formulas.
B58: Row "2", Cell "C2" will auto fill from information entered in worksheet "Form". (Cell is protected)
A59: 1 | B59: Row "2", Cell "M2" will auto fill from information entered in worksheet "Form". (Cell is protected)
A60: =A59+1 -> 2 | B60: Row "3", Cell "M3" will auto fill from information entered in worksheet "Form". (Cell is protected)
A61: =A60+1 -> 3 | B61: Row "4",Cell "M4" will auto fill from information entered in worksheet "Form". (Cell is protected)
A62: 4 | B62: Column B will auto fill from information entered in worksheet "Form".
A63: 5 | B63: Column C will auto fill from information entered in worksheet "Form".
A64: 6 | B64: Column D will auto fill from information entered in worksheet "Form".
A65: 7 | B65: Column E will auto fill from information entered in worksheet "Form".
A66: 8 | B66: Column F will auto fill from information entered in worksheet "Form".
A67: 9 | B67: Column G will auto fill from information entered in worksheet "Form".
A68: 10 | B68: Column H will auto fill from information entered in worksheet "Form".
A69: 11 | B69: Column I will auto fill from information entered in worksheet "Form".
A70: 12 | B70: Column J will auto fill from information entered in worksheet "Form".
A71: 13 | B71: Column K will auto fill from information entered in worksheet "Form".
A72: 14 | B72: Column L will auto fill from information entered in worksheet "Form".
A73: 15 | B73: Column M will auto fill from information entered in worksheet "Form".
A74: 16 | B74: Column N will auto fill from information entered in worksheet "Form".
A75: 17 | B75: Column O will auto fill from information entered in worksheet "Form".
A76: 18 | B76: Column P will auto fill from information entered in worksheet "Form".
A77: 19 | B77: Column Q will auto fill from information entered in worksheet "Form".
A78: 20 | B78: Column R will auto fill from information entered in worksheet "Form".
A79: 21 | B79: Column S will auto fill from information entered in worksheet "Form".
A80: 22 | B80: Column T will auto fill from information entered in worksheet "Form".
A81: 23 | B81: Column U will auto fill from information entered in worksheet "Form".
A82: 24 | B82: Column V will auto fill from information entered in worksheet "Form".
A83: 25 | B83: When printing Priority Calculation sheet, to prevent printing extra sheets, select file, select print, select active sheets and select the number of sheets you want to print.
B85: Tribe Part I
B86: Item Number Instructions
B88: Row "2", Cell "E2" will auto fill from information entered in worksheet "Form". (Cell is protected)
A89: 1 | B89: Row "2", Cell "K2" will auto fill from information entered in worksheet "Form". (Cell is protected)
B90: Row "3", Cell "E3" will auto fill from information entered in worksheet "Form". (Cell is protected)
A91: =A89+1 -> 2 | B91: Row "3", Cell "K3" will auto fill from information entered in worksheet "Form". (Cell is protected)
B92: Row "4",Cell "E4" will auto fill from information entered in worksheet "Form". (Cell is protected)
A93: =A91+1 -> 3 | B93: Row "4", Cell "K4" will auto fill from information entered in worksheet "Form". (Cell is protected)
B94: Row "5", Cell "E5" will auto fill from information entered in worksheet "Form". (Cell is protected)
A95: =A93+1 -> 4 | B95: Row "5", Cell "K5" will auto fill from information entered in worksheet "Form". (Cell is protected)
B96: Column B will auto fill from information entered in worksheet "Form".
A97: =A95+1 -> 5 | B97: Column C will auto fill from information entered in worksheet "Form".
B98: Column D will auto fill from information entered in worksheet "Form".
B99: Column E will auto fill from information entered in worksheet "Form".
A100: =A97+1 -> 6 | B100: Column F will auto fill from information entered in worksheet "Form".
A101: =A100+1 -> 7 | B101: Column G will auto fill from information entered in worksheet "Form".
B102: Column H will auto fill from information entered in worksheet "Form".
B103: Column I will auto fill from information entered in worksheet "Form".
B104: Column J will auto fill from information entered in worksheet "Form".
A105: 8a | B105: Column K will auto fill from information entered in worksheet "Form".
A106: 8b | B106: Column L will auto fill from information entered in worksheet "Form".
A107: 9a | B107: Column M will auto fill from information entered in worksheet "Form".
B108: Column N will auto fill from information entered in worksheet "Form".
A109: 9b | B109: When printing Tribe Part I, to prevent printing extra sheets, select file, select print,select print active sheets and select the number of sheets you want to print.
B111: Tribe Part II
B112: Item Number Instructions
B113: Portions of this worksheet areprotected and has formulas, it contains no macros.
B115: Will autofill (Cells are protected)
A116: 1a | B116: Will autofill (Cells are protected)
A117: 1b | B117: Will autofill (Cells are protected)
A118: 2a | B118: Will autofill (Cells are protected)
A119: 2b | B119: Will autofill (Cells are protected)
A120: 2c | B120: For each recipient provided program service, within accomplishing reporting FY, enter last and first name of recipient.
A121: 3 | B121: Provide Name of the Tribe/Consortium for which information is being reported.
A122: 4 | B122: For each recipient listed in Item Number 3,enter the type of program assistance provided, by entering a digit (1) in the applicable Program Category column(s):
A123: 5 | B123: (A) Interim Improvements (Repairs)
B124: (B) Renovations
B125: (C-1) Replacement Housing (replacement of existing substandard housing).
B126: (C-2) New Housing (provision of housing for families without a home).
B127: (D) Down Payment Assistance (provision of housing in providing a grant for down payment).
B128: For each recipient listed in Item 6a, enter the Actual Start Date (MM/YY) of the construction project.
A129: 6a | B129: For each recipient listed in Item 6, enter Actual Completion Date of the project.
A130: 6b | B130: For each recipient listed in Item Number 7a, enter Actual Administrative Cost of the project.
A131: 7a | B131: For each recipient listed in Item Number 7b, enter Actual Project Cost.
A132: 7b | B132: Will autofill. (Cell is Protected)
A133: 7c

Sheet Profile
B1: Housing Improvement Program | H1: ALASKA | I1: EASTERN OKLAHOMA | J1: EASTERN | K1: GREAT PLAINS | L1: MIDWEST | M1: NAVAJO | N1: NORTHWEST | O1: PACIFIC | P1: ROCKY MOUNTAIN | Q1: SOUTHERN PLAINS | R1: SOUTHWEST | S1: WESTERN
B2: Tribal Annual Performance Report | G2: ALASKA | H2: Arctic Slope Native Association | I2: Chickasaw | J2: Catawba | K2: Crow Creek | L2: Bay Mills | M2: Navajo Nation | N2: Chehalis | O2: Agua Caliente | P2: Crow | Q2: Alabama-Coushatta | R2: Cochiti | S2: Ak-Chin Community | T2: Housing Officer
B3: Profile | G3: EASTERN | H3: Association of Village Council Presidents | I3: Choctaw | J3: Cherokee | K3: Flandreau | L3: Bois Forte | N3: Coeur D'alene | O3: Alturas | P3: Blackfeet | Q3: Apache Of Oklahoma | R3: Isleta | S3: Battle Mountain | T3: Housing Executive Director
G4: EASTERNOKLAHOMA | H4: Bristol Bay Native Association | I4: Creek | J4: Chitimacha | K4: Fort Berthold | L4: Fon Du Lac | N4: Colville | O4: Auburn | P4: Fort Belknap | Q4: Caddo | R4: Jemez | S4: Cocopah | T4: Housing Director
B5: 1 | C5: Region | G5: GREATPLAINS | H5: Central Council Tlingit and Haida | I5: Eastern Shawnee | J5: Choctaw | K5: Fort Totten | L5: Forest County | N5: Coos Bay | O5: Augustine | P5: Fort Peck | Q5: Cheyenne & Arapaho | R5: Jicarilla | S5: Colorado River | T5: Housing Coordinator
B6: 2 | C6: Tribe / Consortia | G6: MIDWEST | H6: Cook Inlet Tribal Council | I6: Miami | J6: Coushatta | K6: Lower Brule | L6: Grand Portage | N6: Coquille | O6: Barona | P6: Northern Cheyenne | Q6: Citizen Potawatomi | R6: Laguna | S6: Duck Valley | T6: Other
G7: NAVAJO | H7: Council Of Athabascan Tribal Governments | I7: Modoc | J7: Indian Township | K7: Oglala Sioux Pine Ridge | L7: Grand Traverse | N7: Cow Creek | O7: Benton | P7: Rocky Boy's | Q7: Comanche Nation | R7: Mescalero | S7: Duckwater
B8: 3 | C8: Agency | G8: NORTHWEST | H8: Fairbanks Native Association | I8: Osage | J8: Jena Choctaw | K8: Omaha | L8: Hannahville | N8: Cowlitz | O8: Berry Creek | P8: Northern Arapaho | Q8: Delaware | R8: Nambe | S8: Elko
B9: 4 | C9: Fiscal Year | G9: PACIFIC | H9: Inupiat Community of the Arctic Slope | I9: Ottawa | J9: Maliseet | K9: Ponca | L9: Ho-Chunk (Wis. Potawatomi) | N9: Grand Ronde | O9: Big Lagoon | P9: Shoshone | Q9: Fort Sill Apache | R9: Picuris | S9: Ely
B10: 5 | C10: Name | G10: ROCKYMOUNTAIN | H10: Kawerak Inc | I10: Peoria | J10: Miccosukee | K10: Rosebud Sioux | L10: Huron Band of Potawatomi | N10: Hoh | O10: Big Pine | Q10: Iowa Of Kansas | R10: Pojoaque | S10: Fallon
B11: 6 | C11: Title | G11: SOUTHERNPLAINS | H11: Kuskokwim Native Association | I11: Quapaw | J11: Micmac | K11: Santee Sioux | L11: Keweenaw Bay | N11: Sb-Jamestown S'kallum | O11: Big Sandy | Q11: Iowa Of Oklahoma | R11: Ramah | S11: Fort McDermitt
B12: 7 | C12: Phone # | G12: SOUTHWEST | H12: Maniilaq Association | I12: Seminole | J12: Narrangansett | K12: Sisseton-Wahpeton | L12: Lac Courte Oreilles | N12: Kalispel | O12: Big Valley | Q12: Kaw Of Oklahoma | R12: San Felipe | S12: Fort McDowell
B13: 8 | C13: Fax # | G13: WESTERN | H13: Tanana Chiefs Conference | I13: Seneca-Cayuga | J13: Pamunkey Indian Tribe | K13: Standing Rock | L13: Lac Du Flambeau | N13: Klamath | O13: Bishop | Q13: Kickapoo Tribe Of Kansas | R13: San Ildfonso | S13: Gila River
B14: 9 | C14: Email | H14: Native Village Of Akhiok | I14: Thlopthlocco | J14: Penobscot | K14: Trenton | L14: Lac Vieux Desert | N14: Kootenai | O14: Blue Lake | Q14: Kickapoo Tribe Of Oklahoma | R14: San Juan | S14: Goshute Business Council
C15: I certify that the information given is true, complete and correct to the best of my knowledge, belief, and they are made in good faith. | H15: Akiachak Native Community | I15: Wyandotte | J15: Pleasant Point Passmaquoddy | K15: Turtle Mountain | L15: Leech Lake | N15: Lower Elwha | O15: Bridgeport | Q15: Kickapoo Tribe Of Texas | R15: Sandia | S15: Havasupai
B16: 10 | C16: Signature | D16: =IF(D10="","",D10) ->  | H16: Akiak Native Community | J16: Poarch Creek | K16: Winnebago | L16: Little River Ottawa | N16: Sb-Lummi | O16: Buena Vista | Q16: Kiowa Of Oklahoma | R16: Santa Ana | S16: Hopi Tribe
B17: 11 | C17: Date | D17: =IF(D16="","",NOW()) ->  | H17: Native Village Of Akutan | J17: Seminole | K17: Yankton | L17: Minominee | N17: Makah | O17: Cabazon | Q17: Otoe-Missouria | R17: Santa Clara | S17: Hopi Tribe (Hpl)
H18: Village Of Alakanuk | J18: Seneca Nation | L18: Mille Lacs Ojibwe | N18: Metlakatla | O18: Cahuilla | Q18: Pawnee | R18: Santa Domingo | S18: Hualapai
H19: Alatna Village | J19: Shinnecock Nation | L19: Minnesota Chippewa Tribe | N19: Muckleshoot | O19: Campo | Q19: Ponca | R19: Southern Ute | S19: Kabaib Paiute
H20: Native Village Of Aleknagik | J20: St. Regis Mohawk | L20: Oneida Tribe | N20: Nez Perce | O20: Cedarville | Q20: Prairie Potawatomi | R20: Taos | S20: Lovelock
H21: Allakaket Village | J21: Tunica Biloxi | L21: Odawa, Little Traverse | N21: Nisqually | O21: Chicken Ranch | Q21: Sac & Fox - Missouri | R21: Tesuque | S21: Moapa
H22: Native Village Of Ambler | J22: Tuscarora | L22: Pokagon Band Potawatomi | N22: Nooksack | O22: Chico | Q22: Sac & Fox Nation - Oklahoma | R22: Ute Mountain | S22: Pascua Yaqui
H23: Village Of Anaktuvuk Pass | L23: Prairie Island | N23: Nw Band Shoshoni | O23: Cloverdale | Q23: Tonkawa Tribe of Oklahoma | R23: Ysleta Del Sur | S23: Pyramid Lake
H24: Yupiit Of Andreafski | L24: Red Cliff | N24: Port Gamble | O24: Cold Springs | Q24: Wichita | R24: Zia | S24: Quechen
H25: Angoon Community Association | L25: Red Lake Chippewa | N25: Puyallup | O25: Colusa | R25: Zuni | S25: Reno-Sparks
H26: Village Of Aniak | L26: Saginaw Chippewa | N26: Quileute | O26: Cortina | S26: Salt River
H27: Anvik Village | L27: Sault Ste. Marie | N27: Sb-Quinault | O27: Coyote Valley | S27: San Carlos Apache
H28: Arctic Village | L28: Shakopee | N28: Salish & Kootenai | O28: Cuyapaipe | S28: San Juan Paiute
B29: PRIVACY ACT STATEMENT | H29: Native Village Of Atka | L29: Sokaogon | N29: Samish | O29: Dry Creek | S29: Skull Valley
B30: 25 CFR 265 and 25 U.S.C. 13 authorize the collection of this information. This information is covered by the system of record notice “Indian Housing Improvement Program, Interior, BIA-10.” The primary use of this information is to determine eligibility for assistance under the Housing Improvement Program. The records contained therein may only be disclosed in accordance with the routine uses and may not otherwise be disclosed by any means of communication to any person, or to another agency, except pursuant to a written request by, or with prior written consent of the individual to whom the record pertains. If the BIA uses the information furnished on this form for purposes other than those indicated above, it may provide you with an additional statement reflecting those purposes. Executive Order 9397 authorizes the collection of your Social Security number. Furnishing the information is voluntary but failure to do so may result in disapproval of your application. | H30: Village Of Atmautluak
H31: Beaver Village | L31: St Croix | N31: Sauk-Suiattle | O31: Elem (Sulphur Bank) | S31: South Fork
H32: Native Village Of Belkofski | L32: Stockbridge Munsee | N32: Shoalwater Bay | O32: Elk Valley | S32: Summitt Lake
H33: Orutsararmuit Native Village | L33: Upper Sioux | N33: Shoshone-Bannock | O33: Enterprise | S33: Tohono O'odham
H34: Village Of Bill Moore's Slough | L34: White Earth | N34: Siletz | O34: Fort Bidwell | S34: Tonto Apache
H35: Birch Creek Tribe | N35: Skokomish | O35: Fort Independence | S35: Uintah & Ouray
H36: Native Village Of Brevig Mission | N36: Snoqualmie | O36: Greenville | S36: Walker River Paiute
B37: PAPERWORK REDUCTION ACT STATEMENT | H37: Native Village Of Buckland | N37: Spokane | O37: Grindstone | S37: Washoe
B38: This information is being collected to select eligible families or individuals to participate in the Housing Improvement Program. Response to this request is required to obtain a benefit in accordance with 25 CFR 256. You are not required to respond to this collection of information unless it displays a currently valid OMB control number. This information will be used to determine the eligibility and the ranking of the applicant. Public reporting burden for this form is estimated to average 1 hour per response, including the time for reviewing instructions, gathering and maintaining data, and completing and reviewing the form. Direct comments regarding the burden estimate or any other aspect of this form to Information Collection Clearance Officer – Indian Affairs, 1849 C Street, NW, MS-4141, Washington, DC 20240. | H38: Native Village Of Cantwell | N38: Squaxin Island | O38: Guidiville | S38: Wells
H39: Chalkyitsik Village | N39: Stillaguamish | O39: Sb-Hoopa | S39: White Mountain Apache
H40: Village Of Chefornak | N40: Suquamish | O40: Hopland | S40: Yavapai-Apache
H41: Chevak Native Village | N41: Swinomish | O41: Inaja-Cosmit | S41: Yavapai-Prescott
H42: Chickaloon Native Village | N42: Tulalip | O42: Ione | S42: Yerington Paiute
H43: Native Village Of Chignik | N43: Umatilla | O43: Jackson | S43: Yomba
H44: Native Village Of Chignik Lagoon
H45: Chignik Lake Village
H46: Village Of Crooked Creek
H47: Native Village Of Deering
H48: Curyung Tribal Council
H49: Village Of Dot Lake
H50: Douglas Indian Association
H51: Native Village Of Eagle | N51: Upper Skagit | O51: Jamul
H52: Native Village Of Eek | N52: Warm Springs | O52: Karuk
H53: Egegik Village | N53: Yakama | O53: La Jolla
H54: Eklutna Native Village | O54: Mooretown
H55: Native Village Of Ekuk | O55: Morongo
H56: Ekwok Village | O56: North Fork
H57: Native Village Of Elim | O57: Pala
H58: Emmonak Village | O58: Paskenta
H59: Native Village Of Nanwalek | O59: Pauma
H60: Evansville Village | O60: Pechanga
H61: Native Village Of Eyak | O61: Picayune
H62: Native Village Of False Pass | O62: Pinoleville
H63: Native Village Of Fort Yukon | O63: Pit River
H64: Native Village Of Gakona | O64: Potter Valley
H65: Native Village Of Gambell | O65: Quartz Valley
H66: Native Village Of Georgetown | O66: Ramona
H67: Chinik Eskimo Community | O67: Redding
H68: Organized Village Of Grayling | O68: Redwood Valley
H69: Gulkana Village | O69: Resighini
H70: Chilkoot Indian Association | O70: Rincon
H71: Native Village Of Hamilton | O71: Robinson
H72: Holy Cross Village | O72: Rohnerville
H73: Hoonah Indian Association | O73: Round Valley
H74: Native Village Of Hooper Bay | O74: Rumsey
H75: Hughes Village | O75: San Manuel
H76: Huslia Village | O76: San Pasqual
H77: Hydaburg Cooperative Association | O77: Santa Rosa
H78: Igiugig Village | O78: Santa Rosa Rancheria
H79: Village Of Iliamna | O79: Santa Ynez
H80: Native Village Of Diomede | O80: Santa Ysabel
H81: Ivanoff Bay Village | O81: Scotts Valley
H82: Organized Village Of Kake | O82: Sheep Ranch
H83: Kaktovik Village | O83: Sherwood
H84: Village Of Kalskag | O84: Shingle Springs
H85: Village Of Kaltag | O85: Smith River
H86: Native Village Of Karluk | O86: Soboba
H87: Organized Village Of Kasaan | O87: Stewarts Points
H88: Native Village Of Kasigluk | O88: Susanville
H89: Kenaitze Indian Tribe | O89: Sycuan
H90: Ketchikan Indian Corporation | O90: Table Bluff
H91: Native Village Of Kiana | O91: Table Mountain
H92: Agdaagux Tribe Of King Cove | O92: Tejon Tribe
H93: King Island Native Community | O93: Timbi-Sha
H94: Native Village Of Kipnuk | O94: Torres-Martin
H95: Native Village Of Kivalina | O95: Trinidad
H96: Klawock Cooperative Association | O96: Tule River
H97: Chilkat Indian Village | O97: Tuolumne
H98: Knik Village | O98: Upper Lake
H99: Native Village Of Kobuk | O99: Viejas
H100: Kokhanok Village | O100: Wilton Tribe
H101: New Koliganek Village Council | O101: Yurok
H102: Native Village Of Kongiganak
H103: Village Of Kotlik
H104: Native Village Of Kotzebue
H105: Native Village Of Koyuk
H106: Koyukuk Native Village
H107: Organized Village Of Kwethluk
H108: Native Village Of Kwigillingok
H109: Native Village Of Larsen Bay
H110: Levelock Village
H111: Lime Village
H112: Galena Village
H113: Village Of Lower Kalskag
H114: Manley Hot Springs Village
H115: Manokotak Village
H116: Native Village Of Marshall
H117: Native Village Of Mary's Igloo
H118: Mcgrath Native Village
H119: Native Village Of Mekoryuk
H120: Mentasta Traditional Council
H121: Native Village Of Minto
H122: Asa'carsarmiut Tribe
H123: Pauloff Harbor Village
H124: Native Village Of Goodnews Bay
H125: Native Village Of Naknek
H126: Native Village Of Napamite
H127: Native Village Of Napakiak
H128: Native Village Of Napaskiak
H129: Native Village Of Nelson Lagoon
H130: Nenana Native Association
H131: New Stuyahok Village
H132: Newhalen Village
H133: Newtok Village
H134: Native Village Of Nightmute
H135: Nikolai Village
H136: Native Village Of Nikolski
H137: Ninilchik Village
H138: Native Village Of Noatak
H139: Nome Eskimo Community
H140: Nondalton Village
H141: Native Village Of Nuiqsut
H142: Noorvik Native Community
H143: Northway Village
H144: Nulato Village
H145: Native Village Of Nunaptichuk
H146: Village Of Ohogamiut
H147: Village Of Old Harbor
H148: Oscarville Traditional Village
H149: Native Village Of Ouzinkie
H150: Native Village Of Paimut
H151: Pedro Bay Village
H152: Native Village Of Perryville
H153: Petersburg Indian Association
H154: Native Village Of Pilot Point
H155: Pilot Station Traditional Village
H156: Native Village Of Pitka's Point
H157: Platinum Traditional Village
H158: Native Village Of Point Hope
H159: Native Village Of Point Lay
H160: Native Village Of Port Graham
H161: Native Village Of Port Heiden
H162: Native Village Of Port Lions
H163: Portage Creek Village
H164: Native Village Of Kwinhagak
H165: Rampart Village
H166: Village Of Red Devil
H167: Native Village Of Ruby
H168: Iqurmuit Traditional Council
H169: Village Of Salamatoff
H170: Qagan Tayagungin Tribe Of Sand Point
H171: Native Village Of Savoonga
H172: Village Of Saxman
H173: Native Village Of Scammon Bay
H174: Native Village Of Selawik
H175: Seldovia Village Tribe
H176: Shageluk Native Village
H177: Native Village Of Shaktoolik
H178: Native Village Of Sheldon's Point
H179: Native Village Of Shismaref
H180: Native Village Of Shungnak
H181: Sitka Tribe Of Alaska
H182: Skagway Village
H183: Village Of Sleetmute
H184: Village Of Solomon
H185: South Naknek Village
H186: Pribilof Island Aleut Community Of Saint George
H187: Algaaciq Native Village
H188: Native Village Of Saint Michael
H189: Pribilof Island Aleut Community Of Saint Paul
H190: Stebbins Community Association
H191: Native Village Of Stevens
H192: Village Of Stony River
H193: Takotna Village
H194: Native Village Of Tanacross
H195: Native Village Of Tanana
H196: Native Village Of Tatilek
H197: Native Village Of Tazlina
H198: Telida Village
H199: Native Village Of Teller
H200: Native Village Of Tetlin
... 361 more rows

Sheet Form
B1: See Instructions | C1: PRIORITY CALCULATION FORM
B2: Region
A3: 1 | B3: ALASKA | E3: Privacy Act Warning! Information on this sheet may pertain to the Privacy Act, all persons handing records must protect integrity, security and confidentiality!
B4: Tribe of Consortia
A5: 2 | B5: Sitka Tribe Of Alaska
B6: District, Agency, Member Tribe of Consortia | G6: Fiscal Year | I6: Date of Application
A7: 3 | G7: =IF(Profile!D9="","",Profile!D9) -> 
B9: Last Name of Applicant | C9: First Name | E9: Suffix | G9: Enrollment # | I9: Category:
A10: 4
K11: Pts
A12: 5 | B12: Household Income: | I12: =IF(B3="Alaska",'Lookup Alaska'!AL5,Lookup!AL5) ->  | J12: =IF(I12="","",I12) ->  | K12: =IF(G12="","0",J12) -> 0
A14: 6 | B14: Aged Person: | F14: =IF(E14=0,0,(INT(YEARFRAC(TODAY(),E14,1)))) -> 0 | G14: =ROUNDDOWN(F14,0) -> 0 | H14: =IF(F14>55,F14-55,"0") -> 0 | I14: =IF(G14>70,"15",H14) -> 0 | K14: =I14 -> 0
A16: 7 | B16: Disabled Individual: | G16: =IF(E16="Yes","10","0") -> 0 | I16: =IF(E16="Yes","10","0") -> 0 | J16: =I16 -> 0 | K16: =J16 -> 0
A18: 8 | B18: Dependent Children: | C18: Under age 18 | G18: =IF(E18=1,3,0)+IF(E18=2,6,0)+IF(E18=3,9,0)+IF(E18=4,12,0)+IF(E18=5,15,0)+IF(E18>5,15,0) -> 0 | I18: =IF(E18="","0",G18) -> 0 | J18: =I18 -> 0 | K18: =J18 -> 0
A20: 9 | B20: Homeless/ Dilapidated | G20: =IF(OR(E20="Homeless","Dilapidated"),"Homeless","5") ->  | H20: =IF(E20="Homeless","5","0") -> 0 | I20: Homeless | K20: =H20 -> 0
A22: 10 | G22: =IF(OR(E22="Overcrowded","Dilapidated"),"Dilapidated","5") ->  | H22: =IF(E20="Dilapidated","5","0") -> 0 | I22: Dilapidated | K22: =H22 -> 0
A24: 11 | B24: Overcrowded | G24: =IF(E24="Yes","10","0") -> 0 | I24: =IF(E24="Yes","5","0") -> 0 | J24: =I24 -> 0 | K24: =J24 -> 0
A26: 12 | B26: Veteran | G26: =IF(E26="Yes","5","0") -> 0 | J26: =I26 -> 0 | K26: =G26 -> 0
A28: 13 | B28: Have you applied for the Veterans Home Loan Program. | G28: =IF(E28="Yes","Yes","No") -> No | I28: =IF(E28="","",E28) ->  | J28: =I28 -> 
A30: 14 | I30: Subtotal | J30: =(K12+K14+K16+K18+K20+K22) -> 0 | K30: =(K12+K14+K16+K18+K20+K22+K24+K26) -> 0
A32: 15 | B32: DownPayment Assistance, must be provide a Certificate of Eligibility from Lender. | J32: =IF(I32="YES",25,"0") -> 0 | K32: =J32 -> 0
A34: 16 | B34: You are on the waiting list and have obtained a denial letter from the Local Housing Authority. | J34: =IF(I34="YES",SUM(K12:K32),IF(I34="Pending",SUM(K12:K32),IF(I34="No","N/A"))) -> FALSE | K34: =J34 -> FALSE
A36: 17 | B36: You have received prior Federal Housing Assistance from HIP, NAHASDA, 1937 ACT, USDA | J36: =IF(I36="No",SUM(K12:K32),IF(I36="Pending",SUM(K12:K32),IF(I36="Yes","N/A"))) -> FALSE | K36: =J36 -> FALSE
A38: 18 | J38: =IF(K12="N/A","N/A",SUM(K30:K32)) -> 0 | K38: =J38 -> 0
A40: 19 | B40: HIP Eligibility requirements 25 CFR Part 256 effective after 12/10/15 | G40: Eligibility Status | J40: =IF(K34="N/A","N/A",IF(K36="N/A","N/A",SUM(K30:K32))) -> 0 | K40: =J40 -> 0
A42: 20 | B42: If known, please provide an estimated start date to renovate or build new!
A43: 21 | B43: If known, please provide an estimated cost to renovate or build new!
A45: 22 | B45: Date of Evaluation: | C45: =IF(B10="","",NOW()) ->  | G45: See instructions on printing
A47: 23 | B47: Name of Evaluator: | C47: =IF(Profile!D10="","",Profile!D10) -> 
A49: 24 | B49: Contact Number: | C49: =IF(Profile!D12="","",Profile!D12) -> 
O52: A | P52: Sr | Q52: AVCP | R52: Association of Village Council Presidents | S52: ALASKA
O53: B | P53: Jr | Q53: ASNA | R53: Arctic Slope Native Association | S53: Native Village Of Akhiok
O54: C-1 | P54: III | Q54: BBNA | R54: Bristol Bay Native Association | S54: Akiachak Native Community
O55: C-2 | P55: IV | Q55: CITC | R55: Cook Inlet Tribal Council | S55: Akiak Native Community
O56: D | Q56: CCTH | R56: Central Council Tlingit and Haida | S56: Native Village Of Akutan
Q57: FNA | R57: Fairbanks Native Association | S57: Village Of Alakanuk
Q58: ICAS | R58: Inupiat Community of the Arctic Slope | S58: Allakaket Village
Q59: Kawerak | R59: Kawerak | S59: Alatna Village
Q60: Maniilaq | R60: Maniilaq | S60: Native Village Of Aleknagik
Q61: TCC | R61: Tanana Chiefs Conference | S61: Native Village Of Ambler
S62: Village Of Anaktuvuk Pass
Q63: Chinle | S63: Yupiit Of Andreafski
P64: Yes | Q64: Shiprock | S64: Village Of Aniak
P65: No | Q65: Western | S65: Arctic Village
Q66: 1 | R66: Homeless | S66: Native Village Of Atka
Q67: 2 | R67: Dilapidated | S67: Village Of Atmautluak
Q68: 3 | R68: Overcrowded | S68: Beaver Village
Q69: 4 | R69: Veteran | S69: Native Village Of Belkofski
S70: Orutsararmuit Native Village
S71: Village Of Bill Moore's Slough
S72: Birch Creek Tribe
S73: Native Village Of Brevig Mission
S74: Native Village Of Buckland
S75: Native Village Of Cantwell
P76: Yes | S76: Chalkyitsik Village
P77: Pending | S77: Village Of Chefornak
P78: No | S78: Chevak Native Village
S79: Chickaloon Native Village
S80: Native Village Of Chignik
S81: Native Village Of Chignik Lagoon
S82: Chignik Lake Village
S83: Cheesh-Na Tribe
S84: Native Village Of Chitna
S85: Chuloonawick Native Village
S86: Circle Native Community
S87: Village Of Clark's Point
S88: Pribilof Islands Aleut Communities
S89: Native Village Of Kluti-Kaah
S90: Native Village Of Council
S91: Craig Community Association
S92: Village Of Crooked Creek
S93: Native Village Of Deering
S94: Curyung Tribal Council
S95: Village Of Dot Lake
S96: Egegik Village
S97: Eklutna Native Village
S98: Native Village Of Ekuk
S99: Ekwok Village
S100: Native Village Of Elim
S101: Emmonak Village
S102: Native Village Of Nanwalek
S103: Evansville Village
S104: Native Village Of Eyak
S105: Native Village Of False Pass
S106: Native Village Of Fort Yukon
S107: Native Village Of Gakona
S108: Native Village Of Gambell
S109: Native Village Of Georgetown
S110: Chinik Eskimo Community
S111: Organized Village Of Grayling
S112: Gulkana Village
S113: Chilkoot Indian Association
S114: Native Village Of Hamilton
S115: Holy Cross Village
S116: Hoonah Indian Association
S117: Native Village Of Hooper Bay
S118: Hughes Village
S119: Huslia Village
S120: Hydaburg Cooperative Association
S121: Igiugig Village
S122: Village Of Iliamna
S123: Native Village Of Diomede
S124: Ivanoff Bay Village
S125: Organized Village Of Kake
S126: Kaktovik Village
S127: Village Of Kalskag
S128: Village Of Kaltag
S129: Native Village Of Karluk
S130: Organized Village Of Kasaan
S131: Native Village Of Kasigluk
S132: Kenaitze Indian Tribe
S133: Ketchikan Indian Corporation
S134: Native Village Of Kiana
S135: Agdaagux Tribe Of King Cove
S136: King Island Native Community
S137: Native Village Of Kipnuk
S138: Native Village Of Kivalina
S139: Klawock Cooperative Association
S140: Chilkat Indian Village
S141: Knik Village
S142: Native Village Of Kobuk
S143: Kokhanok Village
S144: New Koliganek Village Council
S145: Native Village Of Kongiganak
S146: Village Of Kotlik
S147: Native Village Of Kotzebue
S148: Native Village Of Koyuk
S149: Koyukuk Native Village
S150: Organized Village Of Kwethluk
S151: Native Village Of Kwigillingok
S152: Native Village Of Larsen Bay
S153: Levelock Village
S154: Lime Village
S155: Galena Village
S156: Village Of Lower Kalskag
S157: Manley Hot Springs Village
S158: Manokotak Village
S159: Native Village Of Marshall
S160: Native Village Of Mary's Igloo
S161: Mcgrath Native Village
S162: Native Village Of Mekoryuk
S163: Mentasta Traditional Council
S164: Native Village Of Minto
S165: Asa'carsarmiut Tribe
S166: Pauloff Harbor Village
S167: Native Village Of Goodnews Bay
S168: Native Village Of Naknek
S169: Native Village Of Napamite
S170: Native Village Of Napakiak
S171: Native Village Of Napaskiak
S172: Native Village Of Nelson Lagoon
S173: Nenana Native Association
S174: New Stuyahok Village
S175: Newhalen Village
S176: Newtok Village
S177: Native Village Of Nightmute
S178: Nikolai Village
S179: Native Village Of Nikolski
S180: Ninilchik Village
S181: Native Village Of Noatak
S182: Nome Eskimo Community
S183: Nondalton Village
S184: Native Village Of Nuiqsut
S185: Noorvik Native Community
S186: Northway Village
S187: Nulato Village
S188: Native Village Of Nunaptichuk
S189: Village Of Ohogamiut
S190: Village Of Old Harbor
S191: Oscarville Traditional Village
S192: Native Village Of Ouzinkie
S193: Native Village Of Paimut
S194: Pedro Bay Village
S195: Native Village Of Perryville
S196: Petersburg Indian Association
S197: Native Village Of Pilot Point
S198: Pilot Station Traditional Village
S199: Native Village Of Pitka's Point
S200: Platinum Traditional Village
S201: Native Village Of Point Hope
S202: Native Village Of Point Lay
S203: Native Village Of Port Graham
S204: Native Village Of Port Heiden
S205: Native Village Of Port Lions
S206: Portage Creek Village
S207: Native Village Of Kwinhagak
S208: Rampart Village
S209: Village Of Red Devil
S210: Native Village Of Ruby
S211: Iqurmuit Traditional Council
S212: Village Of Salamatoff
S213: Qagan Tayagungin Tribe Of Sand Point
S214: Native Village Of Savoonga
S215: Village Of Saxman
S216: Native Village Of Scammon Bay
S217: Native Village Of Selawik
S218: Seldovia Village Tribe
S219: Shageluk Native Village
S220: Native Village Of Shaktoolik
S221: Native Village Of Sheldon's Point
... 403 more rows

Sheet PriorityListForm
B2: Regional Office: | E2: =IF(Profile!D5="","",Profile!D5) ->  | G2: Number of Tribes Submitting Workplans: | O2: Number of Eligible Applicants: | U2: =IF(U4108="","",U4108) -> 
B3: Fiscal Year: | E3: =IF(Profile!D9="","",Profile!D9) ->  | G3: Number of Tribes In Region: | O3: Number of Applications Considered: | U3: =IF(V4108="","",V4108) -> 
A5: Privacy Act Warning! Information on this sheet may pertain to the Privacy Act, must protect integrity, security and confidentiality!
B6: LAST NAME | C6: FIRST NAME | D6: Suffix | E6: Tribe/ District | F6: Cat | G6: Family size | H6: Income 1040 Form | I6: Income Pts | J6: Aged | K6: Disabled | L6: Dependent Children | M6: Homeless | N6: Dilapidated | O6: Overcrowded | P6: Native Veteran | Q6: Veteran Loan | R6: Down Payment | S6: Denial Letter | T6: Prior Assistance | U6: Eligibility Status | V6: Total Points | W6: Notes
A7: 1
A8: =A7+1 -> 2
A9: =A8+1 -> 3
A10: 4
A11: 5
A12: 6
A13: 7
A14: 8
A15: 9
A16: 10
A17: 11
A18: 12
A19: 13
A20: 14
A21: 15
A22: 16
A23: 17
A24: 18
A25: 19
A26: 20
A27: 21
A28: 22
A29: 23
A30: 24
A31: 25
A32: 26
A33: 27
A34: 28
A35: 29
A36: 30
A37: 31
A38: 32
A39: 33
A40: 34
A41: 35
A42: 36
A43: 37
A44: 38
A45: 39
A46: 40
A47: 41
A48: 42
A49: 43
A50: 44
A51: 45
A52: 46
A53: 47
A54: 48
A55: 49
A56: 50
A57: 51
A58: 52
A59: 53
A60: 54
A61: 55
A62: 56
A63: 57
A64: 58
A65: 59
A66: 60
A67: 61
A68: 62
A69: 63
A70: 64
A71: 65
A72: 66
A73: =A72+1 -> 67
A74: 68
A75: 69
A76: 70
A77: 71
A78: 72
A79: 73
A80: 74
A81: 75
A82: 76
A83: 77
A84: 78
A85: 79
A86: 80
A87: 81
A88: 82
A89: 83
A90: 84
A91: 85
A92: 86
A93: 87
A94: 88
A95: 89
A96: 90
A97: 91
A98: 92
A99: 93
A100: 94
A101: 95
A102: 96
A103: 97
A104: 98
A105: 99
A106: 100
A107: 101
A108: 102
A109: 103
A110: 104
A111: 105
A112: 106
A113: 107
A114: 108
A115: 109
A116: 110
A117: 111
A118: 112
A119: 113
A120: 114
A121: 115
A122: 116
A123: 117
A124: 118
A125: 119
A126: 120
A127: 121
A128: 122
A129: 123
A130: 124
A131: 125
A132: 126
A133: 127
A134: 128
A135: 129
A136: 130
A137: =A136+1 -> 131
A138: 132
A139: 133
A140: 134
A141: 135
A142: 136
A143: 137
A144: 138
A145: 139
A146: 140
A147: 141
A148: 142
A149: 143
A150: 144
A151: 145
A152: 146
A153: 147
A154: 148
A155: 149
A156: 150
A157: 151
A158: 152
A159: 153
A160: 154
A161: 155
A162: 156
A163: 157
A164: 158
A165: 159
A166: 160
A167: 161
A168: 162
A169: 163
A170: 164
A171: 165
A172: 166
A173: 167
A174: 168
A175: 169
A176: 170
A177: 171
A178: 172
A179: 173
A180: 174
A181: 175
A182: 176
A183: 177
A184: 178
A185: 179
A186: 180
A187: 181
A188: 182
A189: 183
A190: 184
A191: 185
A192: 186
A193: 187
A194: 188
A195: 189
A196: 190
A197: 191
A198: 192
A199: 193
A200: 194
A201: =A200+1 -> 195
A202: 196
... 3905 more rows

Sheet TribePartI
A1: PART I - TRIBAL WORK PLAN | L1: Date: | N1: =IF(Profile!D17=0,"",Profile!D17) -> 
A2: 1 | B2: Work Plan for Fiscal Year: | E2: =IF(Profile!D9=0,"",Profile!D9) ->  | K2: Name: | L2: =IF(Profile!D10=0,"",Profile!D10) -> 
A3: 2 | B3: Name of Tribe / Consortium: | E3: =IF(Profile!D6=0,"",Profile!D6) ->  | K3: Title: | L3: =IF(Profile!D11=0,"",Profile!D11) -> 
A4: 3 | B4: Number of Eligible Applicants: | E4: =IF(M4110=0,"",M4110) ->  | K4: Phone: | L4: =IF(Profile!D12=0,"",Profile!D12) -> 
A5: 4 | B5: Number of Applications Received: | E5: =IF(B4110=0,"",B4110) ->  | K5: Fax: | L5: =IF(Profile!D13=0,"",Profile!D13) -> 
B6: See instructions for printing form
A7: 5. Name of Eligible Applicant (ranked in order of need) | E7: 6. Applicant's Servicing Tribe | F7: 7. Program Category (Enter One As Applicable) | K7: 8a. Estimated Start Date | L7: 8b. Estimated Project Costs 25 CFR 256.17(b))** | M7: Eligibility Status | N7: 8c. Priority Ranking Points (ranked in order from highest to lowest)
B9: Last | C9: First | D9: Suffix | F9: (A) | G9: (B) | H9: (C-1) | I9: (C-2) | J9: (D)
A10: 1
A11: =A10+1 -> 2
A12: =A11+1 -> 3
A13: 4
A14: 5
A15: 6
A16: 7
A17: 8
A18: 9
A19: 10
A20: 11
A21: 12
A22: 13
A23: 14
A24: 15
A25: 16
A26: 17
A27: 18
A28: 19
A29: 20
A30: 21
A31: 22
A32: 23
A33: 24
A34: 25
A35: 26
A36: 27
A37: 28
A38: 29
A39: 30
A40: 31
A41: 32
A42: 33
A43: 34
A44: 35
A45: 36
A46: 37
A47: 38
A48: 39
A49: 40
A50: 41
A51: 42
A52: 43
A53: 44
A54: 45
A55: 46
A56: 47
A57: 48
A58: 49
A59: 50
A60: 51
A61: 52
A62: 53
A63: 54
A64: 55
A65: 56
A66: 57
A67: 58
A68: 59
A69: 60
A70: 61
A71: 62
A72: 63
A73: 64
A74: 65
A75: 66
A76: =A75+1 -> 67
A77: 68
A78: 69
A79: 70
A80: 71
A81: 72
A82: 73
A83: 74
A84: 75
A85: 76
A86: 77
A87: 78
A88: 79
A89: 80
A90: 81
A91: 82
A92: 83
A93: 84
A94: 85
A95: 86
A96: 87
A97: 88
A98: 89
A99: 90
A100: 91
A101: 92
A102: 93
A103: 94
A104: 95
A105: 96
A106: 97
A107: 98
A108: 99
A109: 100
A110: 101
A111: 102
A112: 103
A113: 104
A114: 105
A115: 106
A116: 107
A117: 108
A118: 109
A119: 110
A120: 111
A121: 112
A122: 113
A123: 114
A124: 115
A125: 116
A126: 117
A127: 118
A128: 119
A129: 120
A130: 121
A131: 122
A132: 123
A133: 124
A134: 125
A135: 126
A136: 127
A137: 128
A138: 129
A139: 130
A140: =A139+1 -> 131
A141: 132
A142: 133
A143: 134
A144: 135
A145: 136
A146: 137
A147: 138
A148: 139
A149: 140
A150: 141
A151: 142
A152: 143
A153: 144
A154: 145
A155: 146
A156: 147
A157: 148
A158: 149
A159: 150
A160: 151
A161: 152
A162: 153
A163: 154
A164: 155
A165: 156
A166: 157
A167: 158
A168: 159
A169: 160
A170: 161
A171: 162
A172: 163
A173: 164
A174: 165
A175: 166
A176: 167
A177: 168
A178: 169
A179: 170
A180: 171
A181: 172
A182: 173
A183: 174
A184: 175
A185: 176
A186: 177
A187: 178
A188: 179
A189: 180
A190: 181
A191: 182
A192: 183
A193: 184
A194: 185
A195: 186
A196: 187
A197: 188
A198: 189
A199: 190
A200: 191
A201: 192
... 3909 more rows

Sheet Tribe Part II
A1: PART II - REPORT OF ACCOMPLISHMENTS
A2: 1 | B2: a. Number of Applicants Provided Service: | F2: =IF(B64=0,"",B64) ->  | K2: Name of Tribe / Consortium
B3: b. Number of Projects Completed within Fiscal Year: | F3: =IF(K64=0,"",K64) ->  | K3: =IF(Profile!D6=0,"",Profile!D6) -> 
A4: 2 | B4: a. Amount of Total Administration Funds to Report: | F4: =IF(L64=0,"",L64) ->  | K4: REGION | M4: =IF(Profile!D5=0,"",Profile!D5) -> 
B5: b. Amount of Total Constuction Funds to Report: | F5: =IF(M64=0,"",M64) ->  | K5: AGENCY | M5: =IF(Profile!D8="","",Profile!D8) -> 
B6: c. Amount of Total HIP Funds to Report: | F6: =IF(N64=0,"",N64) ->  | K6: FISCAL YEAR | M6: =IF(Profile!D9=0,"",Profile!D9) -> 
B7: Type or Printed Name | D7: =IF(Profile!D10=0,"",Profile!D10) ->  | E7: Title | F7: =IF(Profile!D11=0,"",Profile!D11) -> 
B8: Telephone | D8: =IF(Profile!D12=0,"",Profile!D12) ->  | E8: Fax | F8: =IF(Profile!D13=0,"",Profile!D13) -> 
A9: 3 | B9: Name of Applicant Provided Program Services | D9: 4. Applicant's Servicing Tribe | E9: 5. Program Category (Enter one, as applicable) | J9: 6. Construction Schedules | L9: 7. Construction Funds
B11: Last | C11: First | E11: (A) | F11: (B) | G11: (C-1) | H11: (C-2) | I11: (D) | J11: a.Date of Construction Start | K11: b.Date of Construction Completion | L11: a. Admin cost | M11: b. Project cost | N11: c.Sum of 7(a) & 7(b)
A12: 1 | N12: =IF(SUM(L12:M12)=0,"",SUM(L12:M12)) -> 
A13: =A12+1 -> 2 | N13: =IF(SUM(L13:M13)=0,"",SUM(L13:M13)) -> 
A14: 3
A15: 4
A16: 5
A17: 6
A18: 7
A19: 8
A20: 9
A21: 10
A22: 11
A23: 12
A24: 13
A25: 14
A26: 15
A27: 16
A28: 17
A29: 18
A30: 19
A31: 20
A32: 21
A33: 22
A34: 23
A35: 24
A36: 25
A37: 26
A38: 27
A39: 28
A40: 29
A41: 30
A42: 31
A43: 32
A44: 33
A45: =A44+1 -> 34
A46: 35
A47: 36
A48: 37
A49: 38
A50: 39
A51: 40
A52: 41
A53: 42
A54: 43
A55: 44
A56: 45
A57: 46
A58: 47
A59: 48
A60: 49
A61: 50
A62: 51
A63: 52
B64: =COUNTA(B12:B63) -> 0 | E64: =SUM(E12:E63) -> 0 | F64: =SUM(F12:F63) -> 0 | G64: =SUM(G12:G63) -> 0 | H64: =SUM(H12:H63) -> 0 | K64: =COUNTA(K12:K63) -> 0 | L64: =SUM(L12:L63) -> 0 | M64: =SUM(M12:M63) -> 0 | N64: =SUM(N12:N63) -> 0
H65: =SUM(E64:H64) -> 0

Sheet 150 Per Cent
A1: FACTOR NO. 1 - HIP ELIGIBILITY/SELECTION CRITERIA @ 150%
A2: INCOME GUIDELINE POINT SCHEDULE FOR ALL STATES EXCEPT ALASKA & HAWAII
A3: FAMILY SIZE | B3: 0% to 25% of PG 25 POINTS | E3: 26% to 50% of PG 20 POINTS | H3: 51% to 75% of PG 15 POINTS | K3: 76% to 100 of PG 10 POINTS | N3: 101% to 125% of PG 5 POINTS | Q3: 125% to 150% of PG 0 POINTS | T3: OVER 150% of FPIG INELIGIBLE
A5: 1 | B5: 0 | C5: TO | D5: =D18 -> 3,035 | E5: =D5+1 -> 3,036 | F5: TO | G5: =G18 -> 6,070 | H5: =G5+1 -> 6,071 | I5: TO | J5: =J18 -> 9,105 | K5: =J5+1 -> 9,106 | L5: TO | M5: =M18 -> 12,140 | N5: =M5+1 -> 12,141 | O5: TO | P5: =P18 -> 15,175 | Q5: =P5+1 -> 15,176 | R5: TO | S5: =S18 -> 18,210 | T5: =S5+1 -> 18,211 | U5: & HIGHER
A6: 2 | B6: 0 | C6: TO | D6: =D5+D$17 -> 4,115 | E6: 4,116 | F6: TO | G6: =G5+G$17 -> 8,230 | H6: 8,231 | I6: TO | J6: =J5+J$17 -> 12,345 | K6: 12,346 | L6: TO | M6: =M5+M$17 -> 16,460 | N6: 16,461 | O6: TO | P6: =P5+P$17 -> 20,575 | Q6: 20,576 | R6: TO | S6: =S5+S$17 -> 24,690 | T6: 24,691 | U6: & HIGHER
A7: 3 | B7: 0 | C7: TO | D7: =D6+D$17 -> 5,195 | E7: 5,196 | F7: TO | G7: =G6+G$17 -> 10,390 | H7: 10,391 | I7: TO | J7: 15,585 | K7: 15,586 | L7: TO | M7: =M6+M$17 -> 20,780 | N7: 20,781 | O7: TO | P7: 25,975 | Q7: 25,976 | R7: TO | S7: 31,170 | T7: 31,171 | U7: & HIGHER
A8: 4 | B8: 0 | C8: TO | D8: 6,275 | E8: 6,276 | F8: TO | G8: 12,550 | H8: 12,551 | I8: TO | J8: 18,825 | K8: 18,826 | L8: TO | M8: =M7+M$17 -> 25,100 | N8: 25,101 | O8: TO | P8: 31,375 | Q8: 31,376 | R8: TO | S8: 37,650 | T8: 37,651 | U8: & HIGHER
A9: 5 | B9: 0 | C9: TO | D9: 7,355 | E9: 7,356 | F9: TO | G9: 14,710 | H9: 14,711 | I9: TO | J9: 22,065 | K9: 22,066 | L9: TO | M9: =M8+M$17 -> 29,420 | N9: 29,421 | O9: TO | P9: 36,775 | Q9: 36,776 | R9: TO | S9: 44,130 | T9: 44,131 | U9: & HIGHER
A10: 6 | B10: 0 | C10: TO | D10: 8,435 | E10: 8,436 | F10: TO | G10: 16,870 | H10: 16,871 | I10: TO | J10: 25,305 | K10: 25,306 | L10: TO | M10: =M9+M17 -> 33,740 | N10: 33,741 | O10: TO | P10: 42,175 | Q10: 42,176 | R10: TO | S10: 50,610 | T10: 50,611 | U10: & HIGHER
A11: 7 | B11: 0 | C11: TO | D11: 9,515 | E11: 9,516 | F11: TO | G11: 19,030 | H11: 19,031 | I11: TO | J11: 28,545 | K11: 28,546 | L11: TO | M11: =M10+M$17 -> 38,060 | N11: 38,061 | O11: TO | P11: 47,575 | Q11: 47,576 | R11: TO | S11: 57,090 | T11: 57,091 | U11: & HIGHER
A12: 8 | B12: 0 | C12: TO | D12: 10,595 | E12: 10,596 | F12: TO | G12: 21,190 | H12: 21,191 | I12: TO | J12: 31,785 | K12: 31,786 | L12: TO | M12: =M11+M$17 -> 42,380 | N12: 42,381 | O12: TO | P12: 52,975 | Q12: 52,976 | R12: TO | S12: 63,570 | T12: 63,571 | U12: & HIGHER
A13: 9 | B13: 0 | C13: TO | D13: 11,675 | E13: 11,676 | F13: TO | G13: 23,350 | H13: 23,351 | I13: TO | J13: 35,025 | K13: 35,026 | L13: TO | M13: =M12+M$17 -> 46,700 | N13: 46,701 | O13: TO | P13: 58,375 | Q13: 58,376 | R13: TO | S13: 70,050 | T13: 70,051 | U13: & HIGHER
A14: 10 | B14: 0 | C14: TO | D14: 12,755 | E14: 12,756 | F14: TO | G14: 25,510 | H14: 25,511 | I14: TO | J14: 38,265 | K14: 38,266 | L14: TO | M14: =M13+M$17 -> 51,020 | N14: 51,021 | O14: TO | P14: 63,775 | Q14: 63,776 | R14: TO | S14: 76,530 | T14: 76,531 | U14: & HIGHER
A15: 11 | B15: 0 | C15: TO | D15: 13,835 | E15: 13,836 | F15: TO | G15: 27,670 | H15: 27,671 | I15: TO | J15: 41,505 | K15: 41,506 | L15: TO | M15: =M14+M$17 -> 55,340 | N15: 55,341 | O15: TO | P15: 69,175 | Q15: 69,176 | R15: TO | S15: 83,010 | T15: 83,011 | U15: & HIGHER
A16: 12 | B16: 0 | C16: TO | D16: 14,915 | E16: 14,916 | F16: TO | G16: 29,830 | H16: =G16+1 -> 29,831 | I16: TO | J16: 44,745 | K16: 44,746 | L16: TO | M16: =M15+M17 -> 59,660 | N16: 59,661 | O16: TO | P16: 74,575 | Q16: 74,576 | R16: TO | S16: 89,490 | T16: 89,491 | U16: & HIGHER
A17: EACH PERSON OVER 12 ADD | D17: =$M19*0.25 -> 1,080 | G17: =$M$19*0.5 -> 2,160 | J17: =$M$19*0.75 -> 3,240 | M17: =$M$19*1 -> 4,320 | P17: =$M$19*1.25 -> 5,400 | S17: =$M$19*1.5 -> 6,480 | T17: =S17+1 -> 6,481 | U17: & HIGHER
B18: 25%= | D18: =$M$18*0.25 -> 3,035 | E18: 50%= | G18: =$M$18*0.5 -> 6,070 | H18: '75%= | J18: =$M$18*0.75 -> 9,105 | K18: 100%= | M18: 12,140 | N18: 125%= | P18: =$M$18*1.25 -> 15,175 | Q18: 150% = | S18: =$M18*1.5 -> 18,210 | U18: =R18*1.25 -> 0
B19: @ Add'l: | D19: =J19*0.25 -> 810 | E19: @ Add'l: | G19: =M19*0.5 -> 2,160 | H19: @ Add'l: | J19: =M19*0.75 -> 3,240 | K19: @ Add'l: | M19: 4,320 | N19: @ Add'l: | P19: =$M19*1.25 -> 5,400 | Q19: @ Add'l: | S19: =M19*1.5 -> 6,480 | U19: =R19*1.25 -> 0
A20: PG = | B20: HHS Poverty Guidelines
A24: FACTOR NO. 1 - HIP ELIGIBILITY/SELECTION CRITERIA @ 150%
A25: INCOME GUIDELINE POINT SCHEDULE FOR ALASKA
A26: FAMILY SIZE | B26: 0% to 25% of PG 25 POINTS | E26: 26% to 50% of PG 20 POINTS | H26: 51% to 75% of PG 15 POINTS | K26: 76% to 100 of PG 10 POINTS | N26: 101% to 125% of PG 5 POINTS | Q26: 126% to 150% of PG 0 POINTS | T26: OVER 150% of FPIG INELIGIBLE
A28: 1 | B28: 0 | C28: TO | D28: =D41 -> 3,795 | E28: =D28+1 -> 3,796 | F28: TO | G28: =G41 -> 7,590 | H28: =G28+1 -> 7,591 | I28: TO | J28: =J41 -> 11,385 | K28: =J28+1 -> 11,386 | L28: TO | M28: =M41 -> 15,180 | N28: =M28+1 -> 15,181 | O28: TO | P28: =P41 -> 18,975 | Q28: =P28+1 -> 18,976 | R28: TO | S28: =S41 -> 22,770 | T28: =S28+1 -> 22,771 | U28: & HIGHER
A29: 2 | B29: 0 | C29: TO | D29: =D28+D$40 -> 5,145 | E29: 5,146 | F29: TO | G29: =G28+G$40 -> 10,290 | H29: 10,291 | I29: TO | J29: =J28+J$40 -> 15,435 | K29: 15,436 | L29: TO | M29: =M28+M$40 -> 20,580 | N29: 20,581 | O29: TO | P29: =P28+P$40 -> 25,725 | Q29: 25,726 | R29: TO | S29: =S28+S$40 -> 30,870 | T29: 30,871 | U29: & HIGHER
A30: 3 | B30: 0 | C30: TO | D30: 6,495 | E30: 6,496 | F30: TO | G30: 12,990 | H30: 12,991 | I30: TO | J30: 19,485 | K30: 19,486 | L30: TO | M30: 25,980 | N30: 25,981 | O30: TO | P30: 32,475 | Q30: 32,476 | R30: TO | S30: 38,970 | T30: 38,971 | U30: & HIGHER
A31: 4 | B31: 0 | C31: TO | D31: 7,845 | E31: 7,846 | F31: TO | G31: 15,690 | H31: 15,691 | I31: TO | J31: 23,535 | K31: 23,536 | L31: TO | M31: 31,380 | N31: 31,381 | O31: TO | P31: 39,225 | Q31: 39,226 | R31: TO | S31: 47,070 | T31: 47,071 | U31: & HIGHER
A32: 5 | B32: 0 | C32: TO | D32: 9,195 | E32: 9,196 | F32: TO | G32: 18,390 | H32: 18,391 | I32: TO | J32: 27,585 | K32: 27,586 | L32: TO | M32: 36,780 | N32: 36,781 | O32: TO | P32: 45,975 | Q32: 45,976 | R32: TO | S32: 55,170 | T32: 55,171 | U32: & HIGHER
A33: 6 | B33: 0 | C33: TO | D33: 10,545 | E33: 10,546 | F33: TO | G33: 21,090 | H33: 21,091 | I33: TO | J33: 31,635 | K33: 31,636 | L33: TO | M33: 42,180 | N33: 42,181 | O33: TO | P33: 52,725 | Q33: 52,726 | R33: TO | S33: 63,270 | T33: 63,271 | U33: & HIGHER
A34: 7 | B34: 0 | C34: TO | D34: 11,895 | E34: 11,896 | F34: TO | G34: 23,790 | H34: 23,791 | I34: TO | J34: 35,685 | K34: 35,686 | L34: TO | M34: 47,580 | N34: 47,581 | O34: TO | P34: 59,475 | Q34: 59,476 | R34: TO | S34: 71,370 | T34: 71,371 | U34: & HIGHER
A35: 8 | B35: 0 | C35: TO | D35: 13,245 | E35: 13,246 | F35: TO | G35: 26,490 | H35: 26,491 | I35: TO | J35: 39,735 | K35: 39,736 | L35: TO | M35: 52,980 | N35: 52,981 | O35: TO | P35: 66,225 | Q35: 66,226 | R35: TO | S35: 79,470 | T35: 79,471 | U35: & HIGHER
A36: 9 | B36: 0 | C36: TO | D36: 14,595 | E36: 14,596 | F36: TO | G36: 29,190 | H36: 29,191 | I36: TO | J36: 43,785 | K36: 43,786 | L36: TO | M36: 58,380 | N36: 58,381 | O36: TO | P36: 72,975 | Q36: 72,976 | R36: TO | S36: 87,570 | T36: 87,571 | U36: & HIGHER
A37: 10 | B37: 0 | C37: TO | D37: 15,945 | E37: 15,946 | F37: TO | G37: 31,890 | H37: 31,891 | I37: TO | J37: 47,835 | K37: 47,836 | L37: TO | M37: 63,780 | N37: 63,781 | O37: TO | P37: 79,725 | Q37: 79,726 | R37: TO | S37: 95,670 | T37: 95,671 | U37: & HIGHER
A38: 11 | B38: 0 | C38: TO | D38: 17,295 | E38: 17,296 | F38: TO | G38: 34,590 | H38: 34,591 | I38: TO | J38: 51,885 | K38: 51,886 | L38: TO | M38: 69,180 | N38: 69,181 | O38: TO | P38: 86,475 | Q38: 86,476 | R38: TO | S38: 103,770 | T38: 103,771 | U38: & HIGHER
A39: 12 | B39: 0 | C39: TO | D39: 18,645 | E39: 18,646 | F39: TO | G39: 37,290 | H39: 37,291 | I39: TO | J39: 55,935 | K39: 55,936 | L39: TO | M39: 74,580 | N39: 74,581 | O39: TO | P39: 93,225 | Q39: 93,226 | R39: TO | S39: 111,870 | T39: 111,871 | U39: & HIGHER
A40: EACH PERSON OVER 12 ADD | D40: =D42 -> 1,350 | G40: =G42 -> 2,700 | J40: =J42 -> 4,050 | M40: =M42 -> 5,400 | P40: =P42 -> 6,750 | S40: =S42 -> 8,100 | T40: 8,101 | U40: & HIGHER
B41: 25%= | D41: =$M$41*0.25 -> 3,795 | E41: 50%= | G41: =$M$41*0.5 -> 7,590 | H41: '75%= | J41: =$M$41*0.75 -> 11,385 | K41: 100%= | M41: 15,180 | N41: 125%= | P41: =$M$41*1.25 -> 18,975 | Q41: 150% = | S41: =$M41*1.5 -> 22,770 | U41: =R41*1.25 -> 0
B42: @ Add'l: | D42: =M42*0.25 -> 1,350 | E42: @ Add'l: | G42: =M42*0.5 -> 2,700 | H42: @ Add'l: | J42: =M42*0.75 -> 4,050 | K42: @ Add'l: | M42: 5,400 | N42: @ Add'l: | P42: =$M42*1.25 -> 6,750 | Q42: @ Add'l: | S42: =M42*1.5 -> 8,100 | U42: =R42*1.25 -> 0
A43: PG = | B43: HHS Poverty Guidelines

Sheet FPIG13 (hidden)
A1: FACTOR NO. 1 - HIP ELIGIBILITY/SELECTION CRITERIA @ 150%
A2: INCOME GUIDELINE POINT SCHEDULE FOR ALASKA
A3: FAMILY SIZE | B3: 0% to 25% of PG 40 POINTS | E3: 26% to 50% of PG 30 POINTS | H3: 51% to 75% of PG 20 POINTS | K3: 76% to 100% of PG 10 POINTS | N3: 101% to 125% of PG 0 POINTS | Q3: OVER 125% of FPIG INELIGIBLE
A5: 1 | B5: 0 | C5: TO | D5: =$D$18 -> 3,588 | E5: =D5+1 -> 3,589 | F5: TO | G5: =G18 -> 6,985 | H5: =G5+1 -> 6,986 | I5: TO | J5: =J18 -> 10,478 | K5: =J5+1 -> 10,479 | L5: TO | M5: =M18 -> 14,350 | N5: =M5+1 -> 14,351 | O5: TO | P5: =P18 -> 17,463 | Q5: =P5+1 -> 17,464 | R5: & HIGHER
A6: 2 | B6: 0 | C6: TO | D6: =D5+B$17 -> 4,845 | E6: 4,846 | F6: TO | G6: =G5+E$17 -> 9,500 | H6: 9,501 | I6: TO | J6: 14,191 | K6: 14,192 | L6: TO | M6: =M5+K$17 -> 19,380 | N6: 19,381 | O6: TO | P6: 23,651 | Q6: 23,652 | R6: & HIGHER
A7: 3 | B7: 0 | C7: TO | D7: =D6+B$17 -> 6,103 | E7: 6,104 | F7: TO | G7: 12,015 | H7: 12,016 | I7: TO | J7: =J6+H$17 -> 17,964 | K7: 17,965 | L7: TO | M7: 24,410 | N7: 24,411 | O7: TO | P7: 29,839 | Q7: =P7+1 -> 29,840 | R7: & HIGHER
A8: 4 | B8: 0 | C8: TO | D8: =D7+B$17 -> 7,360 | E8: 7,361 | F8: TO | G8: 14,530 | H8: 14,531 | I8: TO | J8: 21,617 | K8: 21,618 | L8: TO | M8: 29,440 | N8: 29,441 | O8: TO | P8: =P7+N$17 -> 36,127 | Q8: =P8+1 -> 36,128 | R8: & HIGHER
A9: 5 | B9: 0 | C9: TO | D9: 8,618 | E9: 8,619 | F9: TO | G9: 17,045 | H9: 17,046 | I9: TO | J9: 25,390 | K9: 25,391 | L9: TO | M9: 34,470 | N9: 34,471 | O9: TO | P9: 42,215 | Q9: 42,216 | R9: & HIGHER
A10: 6 | B10: 0 | C10: TO | D10: =D9+B$17 -> 9,875 | E10: 9,876 | F10: TO | G10: 19,560 | H10: 19,561 | I10: TO | J10: 29,043 | K10: 29,044 | L10: TO | M10: 39,500 | N10: 39,501 | O10: TO | P10: 48,403 | Q10: 48,404 | R10: & HIGHER
A11: 7 | B11: 0 | C11: TO | D11: 11,133 | E11: 11,134 | F11: TO | G11: 22,075 | H11: 22,076 | I11: TO | J11: 32,816 | K11: 32,817 | L11: TO | M11: 44,530 | N11: 44,531 | O11: TO | P11: 54,591 | Q11: 54,592 | R11: & HIGHER
A12: 8 | B12: 0 | C12: TO | D12: =D11+B$17 -> 12,390 | E12: 12,391 | F12: TO | G12: 24,590 | H12: 24,591 | I12: TO | J12: 36,469 | K12: 36,470 | L12: TO | M12: 49,560 | N12: 49,561 | O12: TO | P12: 60,779 | Q12: 60,780 | R12: & HIGHER
A13: 9 | B13: 0 | C13: TO | D13: 13,648 | E13: 13,649 | F13: TO | G13: 27,105 | H13: 27,106 | I13: TO | J13: 40,242 | K13: 40,243 | L13: TO | M13: 54,590 | N13: 54,591 | O13: TO | P13: 66,967 | Q13: 66,968 | R13: & HIGHER
A14: 10 | B14: 0 | C14: TO | D14: =D13+B$17 -> 14,905 | E14: 14,906 | F14: TO | G14: 29,620 | H14: 29,621 | I14: TO | J14: 43,895 | K14: 43,896 | L14: TO | M14: 59,620 | N14: 59,621 | O14: TO | P14: 73,155 | Q14: 73,156 | R14: & HIGHER
A15: 11 | B15: 0 | C15: TO | D15: 16,163 | E15: 16,164 | F15: TO | G15: 32,135 | H15: 32,136 | I15: TO | J15: 47,668 | K15: 47,669 | L15: TO | M15: 64,650 | N15: 64,651 | O15: TO | P15: =P14+N$17 -> 79,443 | Q15: 79,444 | R15: & HIGHER
A16: 12 | B16: 0 | C16: TO | D16: =D15+B$17 -> 17,420 | E16: 13,251 | F16: TO | G16: 34,650 | H16: 34,651 | I16: TO | J16: 51,321 | K16: 51,322 | L16: TO | M16: 69,680 | N16: 69,681 | O16: TO | P16: 85,531 | Q16: 85,532 | R16: & HIGHER
A17: EACH PERSON OVER 12 ADD | B17: =D19 -> 1,258 | E17: =G19 -> 2,515 | H17: =J19 -> 3,773 | K17: =M19 -> 5,030 | N17: =P19 -> 6,288 | Q17: =N17+1 -> 6,289 | R17: & HIGHER
A18: 2013 PG: | B18: 25%= | D18: =$M$18*0.25 -> 3,588 | E18: 50%= | G18: 6,985 | H18: 75%= | J18: 10,478 | K18: 100%= | M18: 14,350 | N18: 125% = | P18: 17,463
B19: @ Add'l: | D19: =M19*0.25 -> 1,258 | E19: @ Add'l: | G19: =M19*0.5 -> 2,515 | H19: @ Add'l: | J19: =M19*0.75 -> 3,773 | K19: @ Add'l: | M19: 5,030 | P19: =M19*1.25 -> 6,288
A20: PG = | B20: HHS Poverty Guidelines
A21: FACTOR NO. 1 - HIP ELIGIBILITY/SELECTION CRITERIA @ 150%
A22: INCOME GUIDELINE POINT SCHEDULE FOR ALL STATES EXCEPT ALASKA
A23: FAMILY SIZE | B23: 0% to 25% of FPIG 40 POINTS | E23: 26% to 50% of FPIG 30 POINTS | H23: 51% to 75% of FPIG 20 POINTS | K23: 76% to 100% of FPIG 10 POINTS | N23: 101% to 125% of FPIG 0 POINTS | Q23: OVER 125% of FPIG INELIGIBLE
A25: 1 | B25: 0 | C25: TO | D25: =D38 -> 2,793 | E25: =D25+1 -> 2,794 | F25: TO | G25: =G38 -> 5,585 | H25: =G25+1 -> 5,586 | I25: TO | J25: =J38 -> 8,378 | K25: =J25+1 -> 8,379 | L25: TO | M25: =M38 -> 11,490 | N25: =M25+1 -> 11,491 | O25: TO | P25: =P38 -> 13,963 | Q25: =P25+1 -> 13,964 | R25: & HIGHER
A26: 2 | B26: 0 | C26: TO | D26: =D25+D$37 -> 3,798 | E26: 3,799 | F26: TO | G26: =G25+G$37 -> 7,595 | H26: 7,596 | I26: TO | J26: =J25+J$37 -> 11,393 | K26: 11,394 | L26: TO | M26: =M25+M$37 -> 15,510 | N26: 15,511 | O26: TO | P26: =P25+P$37 -> 18,988 | Q26: 18,989 | R26: & HIGHER
A27: 3 | B27: 0 | C27: TO | D27: 4,803 | E27: 4,804 | F27: TO | G27: 9,605 | H27: 9,606 | I27: TO | J27: 14,408 | K27: 14,409 | L27: TO | M27: 19,530 | N27: 19,531 | O27: TO | P27: 24,013 | Q27: 24,014 | R27: & HIGHER
A28: 4 | B28: 0 | C28: TO | D28: 5,808 | E28: 5,809 | F28: TO | G28: 11,615 | H28: 11,616 | I28: TO | J28: 17,423 | K28: 17,424 | L28: TO | M28: 23,550 | N28: 23,551 | O28: TO | P28: 29,038 | Q28: 29,039 | R28: & HIGHER
A29: 5 | B29: 0 | C29: TO | D29: 6,813 | E29: 6,814 | F29: TO | G29: 13,625 | H29: 13,626 | I29: TO | J29: 20,438 | K29: 20,439 | L29: TO | M29: 27,570 | N29: 27,571 | O29: TO | P29: 34,063 | Q29: 34,064 | R29: & HIGHER
A30: 6 | B30: 0 | C30: TO | D30: 7,818 | E30: 7,819 | F30: TO | G30: 15,635 | H30: 15,636 | I30: TO | J30: 23,453 | K30: 23,454 | L30: TO | M30: 31,590 | N30: 31,591 | O30: TO | P30: 39,088 | Q30: 39,089 | R30: & HIGHER
A31: 7 | B31: 0 | C31: TO | D31: 8,823 | E31: 8,824 | F31: TO | G31: 17,645 | H31: 17,646 | I31: TO | J31: 26,468 | K31: 26,469 | L31: TO | M31: 35,610 | N31: 35,611 | O31: TO | P31: 44,113 | Q31: 44,114 | R31: & HIGHER
A32: 8 | B32: 0 | C32: TO | D32: 9,828 | E32: 9,829 | F32: TO | G32: 19,655 | H32: 19,656 | I32: TO | J32: 29,483 | K32: 29,484 | L32: TO | M32: 39,630 | N32: 39,631 | O32: TO | P32: 49,138 | Q32: 49,139 | R32: & HIGHER
A33: 9 | B33: 0 | C33: TO | D33: 10,833 | E33: 10,834 | F33: TO | G33: 21,665 | H33: 21,666 | I33: TO | J33: 32,498 | K33: 32,499 | L33: TO | M33: 43,650 | N33: 43,651 | O33: TO | P33: 54,163 | Q33: 54,164 | R33: & HIGHER
A34: 10 | B34: 0 | C34: TO | D34: 11,838 | E34: 11,839 | F34: TO | G34: 23,675 | H34: 23,676 | I34: TO | J34: 35,513 | K34: 35,514 | L34: TO | M34: 47,670 | N34: 47,671 | O34: TO | P34: 59,188 | Q34: 59,189 | R34: & HIGHER
A35: 11 | B35: 0 | C35: TO | D35: 12,843 | E35: 12,844 | F35: TO | G35: 25,685 | H35: 25,686 | I35: TO | J35: 38,528 | K35: 38,529 | L35: TO | M35: 51,690 | N35: 51,691 | O35: TO | P35: 64,213 | Q35: 64,214 | R35: & HIGHER
A36: 12 | B36: 0 | C36: TO | D36: 13,848 | E36: 13,849 | F36: TO | G36: 27,695 | H36: 27,696 | I36: TO | J36: 41,543 | K36: 41,544 | L36: TO | M36: 55,710 | N36: 55,711 | O36: TO | P36: 69,238 | Q36: 69,239 | R36: & HIGHER
A37: EACH PERSON OVER 12 ADD | D37: =D39 -> 1,005 | G37: =G39 -> 2,010 | J37: =J39 -> 3,015 | M37: =M39 -> 4,020 | P37: =P39 -> 5,025 | Q37: 5,026 | R37: & HIGHER
A38: 2013 PG: | B38: @ 25% = | D38: 2,793 | E38: @ 50% = | G38: 5,585 | H38: @ 75% = | J38: 8,378 | K38: @ 100% = | M38: 11,490 | N38: @ 125% = | P38: 13,963
B39: @ Add'l: | D39: =M39*0.25 -> 1,005 | E39: @ Add'l: | G39: =M39*0.5 -> 2,010 | H39: @ Add'l: | J39: =M39*0.75 -> 3,015 | K39: @ Add'l: | M39: 4,020 | N39: @ Add'l: | P39: =M39*1.25 -> 5,025
A40: PG = | B40: HHS Poverty Guidelines
A42: To view the 2013 Department of Health and Human Services Poverty Income Guideline, go to: | M42: http://aspe.hhs.gov/poverty/13poverty.cfm

Sheet FPIG 125% (hidden)
A1: FACTOR NO. 1 - HIP ELIGIBILITY/SELECTION CRITERIA @ 125%
A2: INCOME GUIDELINE POINT SCHEDULE FOR ALL STATES EXCEPT ALASKA
A3: FAMILY SIZE | B3: 0% to 25% of PG 40 POINTS | E3: 26% to 50% of PG 30 POINTS | H3: 51% to 75% of PG 20 POINTS | K3: 76% to 100% of PG 10 POINTS | N3: 101% to 125% of PG 0 POINTS | Q3: OVER 125% of FPIG INELIGIBLE
A5: 1 | B5: 0 | C5: TO | D5: =D18 -> 2,873 | E5: =D5+1 -> 2,874 | F5: TO | G5: =G18 -> 5,745 | H5: =G5+1 -> 5,746 | I5: TO | J5: =J18 -> 8,618 | K5: =J5+1 -> 8,619 | L5: TO | M5: =M18 -> 11,490 | N5: =M5+1 -> 11,491 | O5: TO | P5: =P18 -> 14,363 | Q5: =P5+1 -> 14,364 | R5: & HIGHER
A6: 2 | B6: 0 | C6: TO | D6: =D5+B$17 -> 3,878 | E6: 3,879 | F6: TO | G6: =G5+E$17 -> 7,755 | H6: 7,756 | I6: TO | J6: =J5+H$17 -> 11,633 | K6: 11,634 | L6: TO | M6: =M5+K$17 -> 15,510 | N6: 15,511 | O6: TO | P6: =P5+N$17 -> 19,388 | Q6: 19,389 | R6: & HIGHER
A7: 3 | B7: 0 | C7: TO | D7: 4,883 | E7: 4,884 | F7: TO | G7: 9,765 | H7: 9,766 | I7: TO | J7: 14,648 | K7: 14,649 | L7: TO | M7: 19,530 | N7: 19,531 | O7: TO | P7: 24,413 | Q7: 24,414 | R7: & HIGHER
A8: 4 | B8: 0 | C8: TO | D8: 5,888 | E8: 5,889 | F8: TO | G8: 11,775 | H8: 11,776 | I8: TO | J8: 17,663 | K8: 17,664 | L8: TO | M8: 23,550 | N8: 23,551 | O8: TO | P8: 29,438 | Q8: 29,439 | R8: & HIGHER
A9: 5 | B9: 0 | C9: TO | D9: 6,893 | E9: 6,894 | F9: TO | G9: 13,785 | H9: 13,786 | I9: TO | J9: 20,678 | K9: 20,679 | L9: TO | M9: 27,570 | N9: 27,571 | O9: TO | P9: 34,463 | Q9: 34,464 | R9: & HIGHER
A10: 6 | B10: 0 | C10: TO | D10: 7,898 | E10: 7,899 | F10: TO | G10: 15,795 | H10: 15,796 | I10: TO | J10: 23,693 | K10: 23,694 | L10: TO | M10: 31,590 | N10: 31,591 | O10: TO | P10: 39,488 | Q10: 39,489 | R10: & HIGHER
A11: 7 | B11: 0 | C11: TO | D11: 8,903 | E11: 8,904 | F11: TO | G11: 17,805 | H11: 17,806 | I11: TO | J11: 26,708 | K11: 26,709 | L11: TO | M11: 35,610 | N11: 35,611 | O11: TO | P11: 44,513 | Q11: 44,514 | R11: & HIGHER
A12: 8 | B12: 0 | C12: TO | D12: 9,908 | E12: 9,909 | F12: TO | G12: 19,815 | H12: 19,816 | I12: TO | J12: 29,723 | K12: 29,724 | L12: TO | M12: 39,630 | N12: 39,631 | O12: TO | P12: 49,538 | Q12: 49,539 | R12: & HIGHER
A13: 9 | B13: 0 | C13: TO | D13: 10,913 | E13: 10,914 | F13: TO | G13: 21,825 | H13: 21,826 | I13: TO | J13: 32,738 | K13: 32,739 | L13: TO | M13: 43,650 | N13: 43,651 | O13: TO | P13: 54,563 | Q13: 54,564 | R13: & HIGHER
A14: 10 | B14: 0 | C14: TO | D14: 11,918 | E14: 11,919 | F14: TO | G14: 23,835 | H14: 23,836 | I14: TO | J14: 35,753 | K14: 35,754 | L14: TO | M14: 47,670 | N14: 47,671 | O14: TO | P14: 59,588 | Q14: 59,589 | R14: & HIGHER
A15: 11 | B15: 0 | C15: TO | D15: 12,923 | E15: 12,924 | F15: TO | G15: 25,845 | H15: 25,846 | I15: TO | J15: 38,768 | K15: 38,769 | L15: TO | M15: 51,690 | N15: 51,691 | O15: TO | P15: 64,613 | Q15: 64,614 | R15: & HIGHER
A16: 12 | B16: 0 | C16: TO | D16: 13,928 | E16: 13,929 | F16: TO | G16: 27,855 | H16: 27,856 | I16: TO | J16: 41,783 | K16: 41,784 | L16: TO | M16: 55,710 | N16: 55,711 | O16: TO | P16: 69,638 | Q16: 69,639 | R16: & HIGHER
A17: EACH PERSON OVER 12 ADD | B17: =D19 -> 1,005 | E17: =G19 -> 2,010 | H17: =J19 -> 3,015 | K17: =$M$19 -> 4,020 | N17: =P19 -> 5,025 | Q17: =N17+1 -> 5,026 | R17: & HIGHER
A18: 2012 PG: | B18: 25%= | D18: =$M$18*0.25 -> 2,873 | E18: 50%= | G18: =$M$18*0.5 -> 5,745 | H18: 75%= | J18: =$M$18*0.75 -> 8,618 | K18: 100%= | M18: 11,490 | N18: 125% = | P18: =M18*1.25 -> 14,363
B19: @ Add'l: | D19: =M19*0.25 -> 1,005 | E19: @ Add'l: | G19: =M19*0.5 -> 2,010 | H19: @ Add'l: | J19: =M19*0.75 -> 3,015 | K19: @ Add'l: | M19: 4,020 | N19: @ Add'l: | P19: =M19*1.25 -> 5,025
A20: PG = | B20: HHS Poverty Guidelines
A21: FACTOR NO. 1 - HIP ELIGIBILITY/SELECTION CRITERIA @ 125%
A22: INCOME GUIDELINE POINT SCHEDULE FOR ALASKA
A23: FAMILY SIZE | B23: 0% to 25% of FPIG 40 POINTS | E23: 26% to 50% of FPIG 30 POINTS | H23: 51% to 75% of FPIG 20 POINTS | K23: 76% to 100% of FPIG 10 POINTS | N23: 101% to 125% of FPIG 0 POINTS | Q23: OVER 125% of FPIG INELIGIBLE
A25: 1 | B25: 0 | C25: TO | D25: =D38 -> 3,588 | E25: =D25+1 -> 3,589 | F25: TO | G25: =G38 -> 7,175 | H25: =G25+1 -> 7,176 | I25: TO | J25: =J38 -> 10,763 | K25: =J25+1 -> 10,764 | L25: TO | M25: =M38 -> 14,350 | N25: =M25+1 -> 14,351 | O25: TO | P25: =P38 -> 17,938 | Q25: =P25+1 -> 17,939 | R25: & HIGHER
A26: 2 | B26: 0 | C26: TO | D26: =D25+D$37 -> 4,845 | E26: 4,846 | F26: TO | G26: =G25+G$37 -> 9,690 | H26: 9,691 | I26: TO | J26: =J25+J$37 -> 14,535 | K26: 14,536 | L26: TO | M26: =M25+M$37 -> 19,380 | N26: 19,381 | O26: TO | P26: =P25+P$37 -> 24,225 | Q26: 24,226 | R26: & HIGHER
A27: 3 | B27: 0 | C27: TO | D27: 6,103 | E27: 6,104 | F27: TO | G27: 12,205 | H27: 12,206 | I27: TO | J27: 18,308 | K27: 18,309 | L27: TO | M27: 24,410 | N27: 24,411 | O27: TO | P27: 30,513 | Q27: 30,514 | R27: & HIGHER
A28: 4 | B28: 0 | C28: TO | D28: 7,360 | E28: 7,361 | F28: TO | G28: 14,720 | H28: 14,721 | I28: TO | J28: 22,080 | K28: 22,081 | L28: TO | M28: 29,440 | N28: 29,441 | O28: TO | P28: 36,800 | Q28: 36,801 | R28: & HIGHER
A29: 5 | B29: 0 | C29: TO | D29: 8,618 | E29: 8,619 | F29: TO | G29: 17,235 | H29: 17,236 | I29: TO | J29: 25,853 | K29: 25,854 | L29: TO | M29: 34,470 | N29: 34,471 | O29: TO | P29: 43,088 | Q29: 43,089 | R29: & HIGHER
A30: 6 | B30: 0 | C30: TO | D30: 9,875 | E30: 9,876 | F30: TO | G30: 19,750 | H30: 19,751 | I30: TO | J30: 29,625 | K30: 29,626 | L30: TO | M30: 39,500 | N30: 39,501 | O30: TO | P30: 49,375 | Q30: 49,376 | R30: & HIGHER
A31: 7 | B31: 0 | C31: TO | D31: 11,133 | E31: 11,134 | F31: TO | G31: 22,265 | H31: 22,266 | I31: TO | J31: 33,398 | K31: 33,399 | L31: TO | M31: 44,530 | N31: 44,531 | O31: TO | P31: 55,663 | Q31: 55,664 | R31: & HIGHER
A32: 8 | B32: 0 | C32: TO | D32: 12,390 | E32: 12,391 | F32: TO | G32: 24,780 | H32: 24,781 | I32: TO | J32: 37,170 | K32: 37,171 | L32: TO | M32: 49,560 | N32: 49,561 | O32: TO | P32: 61,950 | Q32: 61,951 | R32: & HIGHER
A33: 9 | B33: 0 | C33: TO | D33: 13,648 | E33: 13,649 | F33: TO | G33: 27,295 | H33: 27,296 | I33: TO | J33: 40,943 | K33: 40,944 | L33: TO | M33: 54,590 | N33: 54,591 | O33: TO | P33: 68,238 | Q33: 68,239 | R33: & HIGHER
A34: 10 | B34: 0 | C34: TO | D34: 14,905 | E34: 14,906 | F34: TO | G34: 29,810 | H34: 29,811 | I34: TO | J34: 44,715 | K34: 44,716 | L34: TO | M34: 59,620 | N34: 59,621 | O34: TO | P34: 74,525 | Q34: 74,526 | R34: & HIGHER
A35: 11 | B35: 0 | C35: TO | D35: 16,163 | E35: 16,164 | F35: TO | G35: 32,325 | H35: 32,326 | I35: TO | J35: 48,488 | K35: 48,489 | L35: TO | M35: 64,650 | N35: 64,651 | O35: TO | P35: 80,813 | Q35: 80,814 | R35: & HIGHER
A36: 12 | B36: 0 | C36: TO | D36: 17,420 | E36: 17,421 | F36: TO | G36: 34,840 | H36: 34,841 | I36: TO | J36: 52,260 | K36: 52,261 | L36: TO | M36: 69,680 | N36: 69,681 | O36: TO | P36: 87,100 | Q36: 87,101 | R36: & HIGHER
A37: EACH PERSON OVER 12 ADD | D37: =D39 -> 1,258 | G37: =G39 -> 2,515 | J37: =J39 -> 3,773 | M37: =M39 -> 5,030 | P37: =P39 -> 6,288 | Q37: 6,289 | R37: & HIGHER
A38: 2014 PG: | B38: @ 25% = | D38: =$M$38*0.25 -> 3,588 | E38: @ 50% = | G38: =$M$38*0.5 -> 7,175 | H38: @ 75% = | J38: =$M$38*0.75 -> 10,763 | K38: @ 100% = | M38: 14,350 | N38: @ 125% = | P38: =M38*1.25 -> 17,938
B39: @ Add'l: | D39: =M39*0.25 -> 1,258 | E39: @ Add'l: | G39: =M39*0.5 -> 2,515 | H39: @ Add'l: | J39: =M39*0.75 -> 3,773 | K39: @ Add'l: | M39: 5,030 | N39: @ Add'l: | P39: =M39*1.25 -> 6,288
A40: PG = | B40: HHS Poverty Guidelines

Sheet Sheet1 (hidden)
B3: formula shows total if all three cell are populated or than zero, other wise blank or zero
B5: =IF(OR(ISBLANK(B7),ISBLANK(C7),ISBLANK(D7)), "no data", IF(OR(B7=0, C7=0, D7=0),"ZERO", B7+C7+D7)) -> 7
B7: 1 | C7: 2 | D7: 4

Sheet HIP Home
